Workbook

Sheet Output
B4: =OFFSET(Translate!B73,0,moje3) -> Typ potrubí | C4: Trubka Flexira xConnect
B5: =OFFSET(Translate!B32,0,moje3) -> Rozměr potrubí | C5: DN 15
B6: =OFFSET(Translate!B4,0,moje3) -> Médium | C6: Voda
B7: =OFFSET(Translate!B6,0,moje3) -> Tlak (pouze u plynných médií) [Pa] | C7: 2 | D7: [kPa]
B8: =OFFSET(Translate!B13,0,moje3) -> Délka Trubky [mm] | C8: 1000 | D8: [mm]
B9: =OFFSET(Translate!B7,0,moje3) -> Teplota [°C] | C9: 20 | D9: [°C]
B10: =OFFSET(Translate!B14,0,moje3) -> Počet ohybů [-] | C10: 1 | D10: [-]
B11: =OFFSET(Translate!B15,0,moje3) -> Ohybový rádius [mm] | C11: 50 | D11: [mm]
B12: =OFFSET(Translate!B16,0,moje3) -> Úhel ohybu [°] | C12: 90 | D12: [°]
B13: =OFFSET(Translate!B38,0,moje3) -> Plocha celé trubky | C13: =(C8/1000)*IF(moje2=1,INDEX(TabDimWR[],MATCH(Rozmer,TabDimWR[Dimension],0),8),IF(moje2=2,INDEX(TabDimWS[],MATCH(Rozmer,TabDimWS[Dimension],0),8),INDEX(TabDimCu[],MATCH(Rozmer,TabDimCu[Dimension],0),8))) -> 0.07923096672 | D13: [m2]
B14: =OFFSET(Translate!B39,0,moje3) -> Objem celé trubky | C14: =(C8/1000)*IF(moje2=1,INDEX(TabDimWR[],MATCH(Rozmer,TabDimWR[Dimension],0),10),IF(moje2=2,INDEX(TabDimWS[],MATCH(Rozmer,TabDimWS[Dimension],0),10),INDEX(TabDimCu[],MATCH(Rozmer,TabDimCu[Dimension],0),10))) -> 0.235 | D14: [l]
B15: =OFFSET(Translate!B8,0,moje3) -> Vniřní průměr [mm] | C15: =IF(moje2=1,INDEX(TabDimWR[],MATCH(Rozmer,TabDimWR[Dimension],0),3),IF(moje2=2,INDEX(TabDimWS[],MATCH(Rozmer,TabDimWS[Dimension],0),3),INDEX(TabDimCu[],MATCH(Rozmer,TabDimCu[Dimension],0),3))) -> 15.7 | D15: [mm]
B16: =OFFSET(Translate!B9,0,moje3) -> Vnější průměr [mm] | C16: =IF(moje2=1,INDEX(TabDimWR[],MATCH(Rozmer,TabDimWR[Dimension],0),2),IF(moje2=2,INDEX(TabDimWS[],MATCH(Rozmer,TabDimWS[Dimension],0),2),INDEX(TabDimCu[],MATCH(Rozmer,TabDimCu[Dimension],0),2))) -> 20 | D16: [mm]
B17: =OFFSET(Translate!B10,0,moje3) -> Dynamická viskozita [Pa.s] | C17: =IF(moje1=1,VodaDyn,IF(moje1=2,OlejDyn,IF(moje1=3,VzduchDyn,IF(moje1=4,MetanDyn,IF(moje1=5,PropanDyn,IF(moje1=6,ButanDyn,GlykolDyn)))))) -> 0.00101744 | D17: [Pa.s]
B18: =OFFSET(Translate!B11,0,moje3) -> Kinematicka viskosita [m2/s] | C18: =IF(moje1=1,VodaKin,IF(moje1=2,OlejKin,IF(moje1=3,VzduchKin,IF(moje1=4,MetanKin,IF(moje1=5,PropanKin,IF(moje1=6,ButanKin,GlykolKin)))))) -> 1.019317583e-06 | D18: [m2.s-1]
B19: =OFFSET(Translate!B12,0,moje3) -> Hustota [kg/m] | C19: =IF(moje1=1,VodaHus,IF(moje1=2,OlejHus,IF(moje1=3,VzduchHus,IF(moje1=4,MetanHus,IF(moje1=5,PropanHus,IF(moje1=6,ButanHus,GlykolHus)))))) -> 998.158 | D19: [kg.m-3]
C20: NuG | D20: f
B21: =OFFSET(Translate!B17,0,moje3) -> Průtok [l/hod] | C21: =OFFSET(Translate!B18,0,moje3) -> Průtok [l/min] | D21: =OFFSET(Translate!B20,0,moje3) -> Rychlost [m/s] | E21: =OFFSET(Translate!B21,0,moje3) -> Reynoldsovo č. [-] | F21: =OFFSET(Translate!B22,0,moje3) -> Součinitel tření [-] | G21: r/D | H21: =OFFSET(Translate!B29,0,moje3) -> Součinitel odporu [-] | I21: =OFFSET(Translate!B26,0,moje3)&" ["&INDEX(TabJednotka[Unit],TabJednotka[[#Totals],[Sloupec1]],1)&"]" -> Tlaková ztráta rovné trubky [kPa] | J21: =OFFSET(Translate!B30,0,moje3)&" ["&INDEX(TabJednotka[Unit],TabJednotka[[#Totals],[Sloupec1]],1)&"]" -> Tlaková ztráta ohnuté trubky [kPa]
B22: 0 | C22: =Output!$B22/60 -> 0 | D22: =$C22/(60000*3.14*(($C$15/1000)^2/4)) -> 0 | E22: =($D22*($C$15/1000))/($C$18) -> 0 | F22: =IF(TabTyp[[#Totals],[pom]]=1,VLOOKUP(E22,TabWRFrictionF[#All],MATCH(Rozmer,TabWRFrictionF[#Headers],0)),IF(TabTyp[[#Totals],[pom]]=2,VLOOKUP(E22,TabWSFrictionF[#All],MATCH(Rozmer,TabWSFrictionF[#Headers],0)),VLOOKUP(E22,TabCuFrictionF[#All],MATCH(Rozmer,TabCuFrictionF[#Headers],0)))) -> 0 | G22: =FLOOR(($C$11/$C$15),0.1) -> 3.1 | H22: =IF(TabTyp[[#Totals],[pom]]=1,VLOOKUP(FLOOR(($C$11/$C$15),0.1),TabWRResistanceF[#All],MATCH(Rozmer,TabWRResistanceF[#Headers],0)),IF(TabTyp[[#Totals],[pom]]=2,VLOOKUP(FLOOR(($C$11/$C$15),0.1),TabWSResistanceF[#All],MATCH(Rozmer,TabWSResistanceF[#Headers],0)),VLOOKUP(FLOOR(($C$11/$C$15),0.1),TabCuResistanceF[#All],MATCH(Rozmer,TabCuResistanceF[#Headers],0)))) -> 2.08532 | I22: =($F22*$C$19*($D22^2)*($C$8/1000))/(2*($C$15/1000))/TabJednotka[[#Totals],[pom]] -> 0 | J22: =I22+$C$10*(($H22*$C$12/180)*$C$19*$D22^2)/2/TabJednotka[[#Totals],[pom]] -> 0
B23: =ROUND(1*(B33-B22)/11,-1) -> 140 | C23: =Output!$B23/60 -> 2.333333333 | D23: 0.2009817268 | E23: 3095.613344 | F23: =IF(TabTyp[[#Totals],[pom]]=1,VLOOKUP(E23,TabWRFrictionF[#All],MATCH(Rozmer,TabWRFrictionF[#Headers],0)),IF(TabTyp[[#Totals],[pom]]=2,VLOOKUP(E23,TabWSFrictionF[#All],MATCH(Rozmer,TabWSFrictionF[#Headers],0)),VLOOKUP(E23,TabCuFrictionF[#All],MATCH(Rozmer,TabCuFrictionF[#Headers],0)))) -> 0.1000622906 | G23: =FLOOR(($C$11/$C$15),0.1) -> 3.1 | H23: =IF(TabTyp[[#Totals],[pom]]=1,VLOOKUP(FLOOR(($C$11/$C$15),0.1),TabWRResistanceF[#All],MATCH(Rozmer,TabWRResistanceF[#Headers],0)),IF(TabTyp[[#Totals],[pom]]=2,VLOOKUP(FLOOR(($C$11/$C$15),0.1),TabWSResistanceF[#All],MATCH(Rozmer,TabWSResistanceF[#Headers],0)),VLOOKUP(FLOOR(($C$11/$C$15),0.1),TabCuResistanceF[#All],MATCH(Rozmer,TabCuResistanceF[#Headers],0)))) -> 2.08532 | I23: =($F23*$C$19*($D23^2)*($C$8/1000))/(2*($C$15/1000))/TabJednotka[[#Totals],[pom]] -> 0.1284852373 | J23: =I23+$C$10*(($H23*$C$12/180)*$C$19*$D23^2)/2/TabJednotka[[#Totals],[pom]] -> 0.1495048716
B24: =ROUND(2*(B33-B22)/11,-1) -> 270 | C24: =Output!$B24/60 -> 4.5 | D24: 0.387607616 | E24: 5970.111448 | F24: =IF(TabTyp[[#Totals],[pom]]=1,VLOOKUP(E24,TabWRFrictionF[#All],MATCH(Rozmer,TabWRFrictionF[#Headers],0)),IF(TabTyp[[#Totals],[pom]]=2,VLOOKUP(E24,TabWSFrictionF[#All],MATCH(Rozmer,TabWSFrictionF[#Headers],0)),VLOOKUP(E24,TabCuFrictionF[#All],MATCH(Rozmer,TabCuFrictionF[#Headers],0)))) -> 0.09 | G24: 3.1 | H24: =IF(TabTyp[[#Totals],[pom]]=1,VLOOKUP(FLOOR(($C$11/$C$15),0.1),TabWRResistanceF[#All],MATCH(Rozmer,TabWRResistanceF[#Headers],0)),IF(TabTyp[[#Totals],[pom]]=2,VLOOKUP(FLOOR(($C$11/$C$15),0.1),TabWSResistanceF[#All],MATCH(Rozmer,TabWSResistanceF[#Headers],0)),VLOOKUP(FLOOR(($C$11/$C$15),0.1),TabCuResistanceF[#All],MATCH(Rozmer,TabCuResistanceF[#Headers],0)))) -> 2.08532 | I24: =($F24*$C$19*($D24^2)*($C$8/1000))/(2*($C$15/1000))/TabJednotka[[#Totals],[pom]] -> 0.4298300328 | J24: =I24+$C$10*(($H24*$C$12/180)*$C$19*$D24^2)/2/TabJednotka[[#Totals],[pom]] -> 0.5080102032
B25: =ROUND(3*(B33-B22)/11,-1) -> 410 | C25: =Output!$B25/60 -> 6.833333333 | D25: 0.5885893429 | E25: 9065.724792 | F25: =IF(TabTyp[[#Totals],[pom]]=1,VLOOKUP(E25,TabWRFrictionF[#All],MATCH(Rozmer,TabWRFrictionF[#Headers],0)),IF(TabTyp[[#Totals],[pom]]=2,VLOOKUP(E25,TabWSFrictionF[#All],MATCH(Rozmer,TabWSFrictionF[#Headers],0)),VLOOKUP(E25,TabCuFrictionF[#All],MATCH(Rozmer,TabCuFrictionF[#Headers],0)))) -> 0.09 | G25: 3.1 | H25: =IF(TabTyp[[#Totals],[pom]]=1,VLOOKUP(FLOOR(($C$11/$C$15),0.1),TabWRResistanceF[#All],MATCH(Rozmer,TabWRResistanceF[#Headers],0)),IF(TabTyp[[#Totals],[pom]]=2,VLOOKUP(FLOOR(($C$11/$C$15),0.1),TabWSResistanceF[#All],MATCH(Rozmer,TabWSResistanceF[#Headers],0)),VLOOKUP(FLOOR(($C$11/$C$15),0.1),TabCuResistanceF[#All],MATCH(Rozmer,TabCuResistanceF[#Headers],0)))) -> 2.08532 | I25: =($F25*$C$19*($D25^2)*($C$8/1000))/(2*($C$15/1000))/TabJednotka[[#Totals],[pom]] -> 0.991144424 | J25: =I25+$C$10*(($H25*$C$12/180)*$C$19*$D25^2)/2/TabJednotka[[#Totals],[pom]] -> 1.171419961
B26: =ROUND(4*(B33-B22)/11,-1) -> 550 | C26: =Output!$B26/60 -> 9.166666667 | D26: 0.7895710697 | E26: 12161.33814 | F26: =IF(TabTyp[[#Totals],[pom]]=1,VLOOKUP(E26,TabWRFrictionF[#All],MATCH(Rozmer,TabWRFrictionF[#Headers],0)),IF(TabTyp[[#Totals],[pom]]=2,VLOOKUP(E26,TabWSFrictionF[#All],MATCH(Rozmer,TabWSFrictionF[#Headers],0)),VLOOKUP(E26,TabCuFrictionF[#All],MATCH(Rozmer,TabCuFrictionF[#Headers],0)))) -> 0.09 | G26: 3.1 | H26: =IF(TabTyp[[#Totals],[pom]]=1,VLOOKUP(FLOOR(($C$11/$C$15),0.1),TabWRResistanceF[#All],MATCH(Rozmer,TabWRResistanceF[#Headers],0)),IF(TabTyp[[#Totals],[pom]]=2,VLOOKUP(FLOOR(($C$11/$C$15),0.1),TabWSResistanceF[#All],MATCH(Rozmer,TabWSResistanceF[#Headers],0)),VLOOKUP(FLOOR(($C$11/$C$15),0.1),TabCuResistanceF[#All],MATCH(Rozmer,TabCuResistanceF[#Headers],0)))) -> 2.08532 | I26: =($F26*$C$19*($D26^2)*($C$8/1000))/(2*($C$15/1000))/TabJednotka[[#Totals],[pom]] -> 1.78358827 | J26: =I26+$C$10*(($H26*$C$12/180)*$C$19*$D26^2)/2/TabJednotka[[#Totals],[pom]] -> 2.107998442
B27: =ROUND(5*(B33-B22)/11,-1) -> 680 | C27: =Output!$B27/60 -> 11.33333333 | D27: 0.9761969589 | E27: 15035.83624 | F27: =IF(TabTyp[[#Totals],[pom]]=1,VLOOKUP(E27,TabWRFrictionF[#All],MATCH(Rozmer,TabWRFrictionF[#Headers],0)),IF(TabTyp[[#Totals],[pom]]=2,VLOOKUP(E27,TabWSFrictionF[#All],MATCH(Rozmer,TabWSFrictionF[#Headers],0)),VLOOKUP(E27,TabCuFrictionF[#All],MATCH(Rozmer,TabCuFrictionF[#Headers],0)))) -> 0.09 | G27: 3.1 | H27: =IF(TabTyp[[#Totals],[pom]]=1,VLOOKUP(FLOOR(($C$11/$C$15),0.1),TabWRResistanceF[#All],MATCH(Rozmer,TabWRResistanceF[#Headers],0)),IF(TabTyp[[#Totals],[pom]]=2,VLOOKUP(FLOOR(($C$11/$C$15),0.1),TabWSResistanceF[#All],MATCH(Rozmer,TabWSResistanceF[#Headers],0)),VLOOKUP(FLOOR(($C$11/$C$15),0.1),TabCuResistanceF[#All],MATCH(Rozmer,TabCuResistanceF[#Headers],0)))) -> 2.08532 | I27: =($F27*$C$19*($D27^2)*($C$8/1000))/(2*($C$15/1000))/TabJednotka[[#Totals],[pom]] -> 2.726384186 | J27: =I27+$C$10*(($H27*$C$12/180)*$C$19*$D27^2)/2/TabJednotka[[#Totals],[pom]] -> 3.222275966
B28: =ROUND(6*(B33-B22)/11,-1) -> 820 | C28: =Output!$B28/60 -> 13.66666667 | D28: 1.177178686 | E28: 18131.44958 | F28: =IF(TabTyp[[#Totals],[pom]]=1,VLOOKUP(E28,TabWRFrictionF[#All],MATCH(Rozmer,TabWRFrictionF[#Headers],0)),IF(TabTyp[[#Totals],[pom]]=2,VLOOKUP(E28,TabWSFrictionF[#All],MATCH(Rozmer,TabWSFrictionF[#Headers],0)),VLOOKUP(E28,TabCuFrictionF[#All],MATCH(Rozmer,TabCuFrictionF[#Headers],0)))) -> 0.09 | G28: 3.1 | H28: =IF(TabTyp[[#Totals],[pom]]=1,VLOOKUP(FLOOR(($C$11/$C$15),0.1),TabWRResistanceF[#All],MATCH(Rozmer,TabWRResistanceF[#Headers],0)),IF(TabTyp[[#Totals],[pom]]=2,VLOOKUP(FLOOR(($C$11/$C$15),0.1),TabWSResistanceF[#All],MATCH(Rozmer,TabWSResistanceF[#Headers],0)),VLOOKUP(FLOOR(($C$11/$C$15),0.1),TabCuResistanceF[#All],MATCH(Rozmer,TabCuResistanceF[#Headers],0)))) -> 2.08532 | I28: =($F28*$C$19*($D28^2)*($C$8/1000))/(2*($C$15/1000))/TabJednotka[[#Totals],[pom]] -> 3.964577696 | J28: =I28+$C$10*(($H28*$C$12/180)*$C$19*$D28^2)/2/TabJednotka[[#Totals],[pom]] -> 4.685679844
B29: =ROUND(7*(B33-B22)/11,-1) -> 950 | C29: =Output!$B29/60 -> 15.83333333 | D29: 1.363804575 | E29: 21005.94769 | F29: =IF(TabTyp[[#Totals],[pom]]=1,VLOOKUP(E29,TabWRFrictionF[#All],MATCH(Rozmer,TabWRFrictionF[#Headers],0)),IF(TabTyp[[#Totals],[pom]]=2,VLOOKUP(E29,TabWSFrictionF[#All],MATCH(Rozmer,TabWSFrictionF[#Headers],0)),VLOOKUP(E29,TabCuFrictionF[#All],MATCH(Rozmer,TabCuFrictionF[#Headers],0)))) -> 0.09 | G29: 3.1 | H29: =IF(TabTyp[[#Totals],[pom]]=1,VLOOKUP(FLOOR(($C$11/$C$15),0.1),TabWRResistanceF[#All],MATCH(Rozmer,TabWRResistanceF[#Headers],0)),IF(TabTyp[[#Totals],[pom]]=2,VLOOKUP(FLOOR(($C$11/$C$15),0.1),TabWSResistanceF[#All],MATCH(Rozmer,TabWSResistanceF[#Headers],0)),VLOOKUP(FLOOR(($C$11/$C$15),0.1),TabCuResistanceF[#All],MATCH(Rozmer,TabCuResistanceF[#Headers],0)))) -> 2.08532 | I29: =($F29*$C$19*($D29^2)*($C$8/1000))/(2*($C$15/1000))/TabJednotka[[#Totals],[pom]] -> 5.321284013 | J29: =I29+$C$10*(($H29*$C$12/180)*$C$19*$D29^2)/2/TabJednotka[[#Totals],[pom]] -> 6.289152378
B30: =ROUND(8*(B33-B22)/11,-1) -> 1090 | C30: =Output!$B30/60 -> 18.16666667 | D30: 1.564786302 | E30: 24101.56103 | F30: =IF(TabTyp[[#Totals],[pom]]=1,VLOOKUP(E30,TabWRFrictionF[#All],MATCH(Rozmer,TabWRFrictionF[#Headers],0)),IF(TabTyp[[#Totals],[pom]]=2,VLOOKUP(E30,TabWSFrictionF[#All],MATCH(Rozmer,TabWSFrictionF[#Headers],0)),VLOOKUP(E30,TabCuFrictionF[#All],MATCH(Rozmer,TabCuFrictionF[#Headers],0)))) -> 0.09 | G30: 3.1 | H30: =IF(TabTyp[[#Totals],[pom]]=1,VLOOKUP(FLOOR(($C$11/$C$15),0.1),TabWRResistanceF[#All],MATCH(Rozmer,TabWRResistanceF[#Headers],0)),IF(TabTyp[[#Totals],[pom]]=2,VLOOKUP(FLOOR(($C$11/$C$15),0.1),TabWSResistanceF[#All],MATCH(Rozmer,TabWSResistanceF[#Headers],0)),VLOOKUP(FLOOR(($C$11/$C$15),0.1),TabCuResistanceF[#All],MATCH(Rozmer,TabCuResistanceF[#Headers],0)))) -> 2.08532 | I30: =($F30*$C$19*($D30^2)*($C$8/1000))/(2*($C$15/1000))/TabJednotka[[#Totals],[pom]] -> 7.005227187 | J30: =I30+$C$10*(($H30*$C$12/180)*$C$19*$D30^2)/2/TabJednotka[[#Totals],[pom]] -> 8.279381651
B31: =ROUND(9*(B33-B22)/11,-1) -> 1230 | C31: =Output!$B31/60 -> 20.5 | D31: 1.765768029 | E31: 27197.17438 | F31: =IF(TabTyp[[#Totals],[pom]]=1,VLOOKUP(E31,TabWRFrictionF[#All],MATCH(Rozmer,TabWRFrictionF[#Headers],0)),IF(TabTyp[[#Totals],[pom]]=2,VLOOKUP(E31,TabWSFrictionF[#All],MATCH(Rozmer,TabWSFrictionF[#Headers],0)),VLOOKUP(E31,TabCuFrictionF[#All],MATCH(Rozmer,TabCuFrictionF[#Headers],0)))) -> 0.09 | G31: 3.1 | H31: =IF(TabTyp[[#Totals],[pom]]=1,VLOOKUP(FLOOR(($C$11/$C$15),0.1),TabWRResistanceF[#All],MATCH(Rozmer,TabWRResistanceF[#Headers],0)),IF(TabTyp[[#Totals],[pom]]=2,VLOOKUP(FLOOR(($C$11/$C$15),0.1),TabWSResistanceF[#All],MATCH(Rozmer,TabWSResistanceF[#Headers],0)),VLOOKUP(FLOOR(($C$11/$C$15),0.1),TabCuResistanceF[#All],MATCH(Rozmer,TabCuResistanceF[#Headers],0)))) -> 2.08532 | I31: =($F31*$C$19*($D31^2)*($C$8/1000))/(2*($C$15/1000))/TabJednotka[[#Totals],[pom]] -> 8.920299816 | J31: =I31+$C$10*(($H31*$C$12/180)*$C$19*$D31^2)/2/TabJednotka[[#Totals],[pom]] -> 10.54277965
B32: =ROUND(10*(B33-B22)/11,-1) -> 1360 | C32: =Output!$B32/60 -> 22.66666667 | D32: 1.952393918 | E32: 30071.67248 | F32: =IF(TabTyp[[#Totals],[pom]]=1,VLOOKUP(E32,TabWRFrictionF[#All],MATCH(Rozmer,TabWRFrictionF[#Headers],0)),IF(TabTyp[[#Totals],[pom]]=2,VLOOKUP(E32,TabWSFrictionF[#All],MATCH(Rozmer,TabWSFrictionF[#Headers],0)),VLOOKUP(E32,TabCuFrictionF[#All],MATCH(Rozmer,TabCuFrictionF[#Headers],0)))) -> 0.09 | G32: 3.1 | H32: =IF(TabTyp[[#Totals],[pom]]=1,VLOOKUP(FLOOR(($C$11/$C$15),0.1),TabWRResistanceF[#All],MATCH(Rozmer,TabWRResistanceF[#Headers],0)),IF(TabTyp[[#Totals],[pom]]=2,VLOOKUP(FLOOR(($C$11/$C$15),0.1),TabWSResistanceF[#All],MATCH(Rozmer,TabWSResistanceF[#Headers],0)),VLOOKUP(FLOOR(($C$11/$C$15),0.1),TabCuResistanceF[#All],MATCH(Rozmer,TabCuResistanceF[#Headers],0)))) -> 2.08532 | I32: =($F32*$C$19*($D32^2)*($C$8/1000))/(2*($C$15/1000))/TabJednotka[[#Totals],[pom]] -> 10.90553674 | J32: =I32+$C$10*(($H32*$C$12/180)*$C$19*$D32^2)/2/TabJednotka[[#Totals],[pom]] -> 12.88910387
B33: 1500 | C33: =Output!$B33/60 -> 25 | D33: 2.153375645 | E33: 33167.28582 | F33: =IF(TabTyp[[#Totals],[pom]]=1,VLOOKUP(E33,TabWRFrictionF[#All],MATCH(Rozmer,TabWRFrictionF[#Headers],0)),IF(TabTyp[[#Totals],[pom]]=2,VLOOKUP(E33,TabWSFrictionF[#All],MATCH(Rozmer,TabWSFrictionF[#Headers],0)),VLOOKUP(E33,TabCuFrictionF[#All],MATCH(Rozmer,TabCuFrictionF[#Headers],0)))) -> 0.09 | G33: 3.1 | H33: =IF(TabTyp[[#Totals],[pom]]=1,VLOOKUP(FLOOR(($C$11/$C$15),0.1),TabWRResistanceF[#All],MATCH(Rozmer,TabWRResistanceF[#Headers],0)),IF(TabTyp[[#Totals],[pom]]=2,VLOOKUP(FLOOR(($C$11/$C$15),0.1),TabWSResistanceF[#All],MATCH(Rozmer,TabWSResistanceF[#Headers],0)),VLOOKUP(FLOOR(($C$11/$C$15),0.1),TabCuResistanceF[#All],MATCH(Rozmer,TabCuResistanceF[#Headers],0)))) -> 2.08532 | I33: =($F33*$C$19*($D33^2)*($C$8/1000))/(2*($C$15/1000))/TabJednotka[[#Totals],[pom]] -> 13.26635904 | J33: =I33+$C$10*(($H33*$C$12/180)*$C$19*$D33^2)/2/TabJednotka[[#Totals],[pom]] -> 15.67932726
B37: =OFFSET(Translate!B23,0,moje3) -> Požadovaná tlaková ztráta | C37: 10
B38: =OFFSET(Translate!B74,0,moje3) -> Vypočítaný průtok | C38: =ROUND(B48,-1) -> 1200
B39: =OFFSET(Translate!B27,0,moje3) -> Výhřevnost | C39: =IF(moje1=1,0,IF(moje1=2,0,IF(moje1=3,0,IF(moje1=4,MetanVyh,IF(moje1=5,PropanVyh,IF(moje1=6,ButanVyh,0)))))) -> 0
B40: =OFFSET(Translate!B28,0,moje3) -> Spalné teplo | C40: =IF(moje1=1,0,IF(moje1=2,0,IF(moje1=3,0,IF(moje1=4,MetanSpal,IF(moje1=5,PropanSpal,IF(moje1=6,ButanSpal,0)))))) -> 0
B41: =OFFSET(Translate!B75,0,moje3) -> maximální výkon spotřebiče | C41: =C39*C38/3600 -> 0
B42: =OFFSET(Translate!B76,0,moje3) -> maximální výkon - kondenzační kotel | C42: =C40*C38/3600 -> 0
B44: =OFFSET(Translate!B77,0,moje3) -> Poznámka: Vyplňujte pouze zelené buňky. Všechny ostatní hodnoty jsou načítány automaticky. Výsledné hodnoty jsou orientační a nemusí přesně odpovídat skutečnosti. Musíte mít povolená makra, aby výpočet fungoval. Použití výsledků je plně v odpovědnosti uživatele. Práva na změnu vyhrazena. © Tomáš Holeček
B48: 1197.966602 | C48: =B48/60 -> 19.96611004 | D48: =$C48/(60000*3.14*(($C$15/1000)^2/4)) -> 1.719781403 | E48: =($D48*($C$15/1000))/($C$18) -> 26488.86714 | F48: =IF(TabTyp[[#Totals],[pom]]=1,VLOOKUP(E48,TabWRFrictionF[#All],MATCH(Rozmer,TabWRFrictionF[#Headers],0)),IF(TabTyp[[#Totals],[pom]]=2,VLOOKUP(E48,TabWSFrictionF[#All],MATCH(Rozmer,TabWSFrictionF[#Headers],0)),VLOOKUP(E48,TabCuFrictionF[#All],MATCH(Rozmer,TabCuFrictionF[#Headers],0)))) -> 0.09 | G48: =FLOOR(($C$11/$C$15),0.1) -> 3.1 | H48: =IF(TabTyp[[#Totals],[pom]]=1,VLOOKUP(FLOOR(($C$11/$C$15),0.1),TabWRResistanceF[#All],MATCH(Rozmer,TabWRResistanceF[#Headers],0)),IF(TabTyp[[#Totals],[pom]]=2,VLOOKUP(FLOOR(($C$11/$C$15),0.1),TabWSResistanceF[#All],MATCH(Rozmer,TabWSResistanceF[#Headers],0)),VLOOKUP(FLOOR(($C$11/$C$15),0.1),TabCuResistanceF[#All],MATCH(Rozmer,TabCuResistanceF[#Headers],0)))) -> 2.08532 | I48: =($F48*$C$19*($D48^2)*($C$8/1000))/(2*($C$15/1000))/TabJednotka[[#Totals],[pom]] -> 8.461719993 | J48: =I48+$C$10*(($H48*$C$12/180)*$C$19*$D48^2)/2/TabJednotka[[#Totals],[pom]] -> 10.00079046

Sheet Data (hidden)
B3: Reynolds nr. | C3: DN 08 | D3: DN 12 | E3: DN 15 | F3: DN 18 | G3: DN 20 | H3: DN 23 | I3: DN 25 | J3: DN 32 | K3: DN 40 | L3: DN 50
B4: 0 | C4: 0 | D4: 0 | E4: 0 | F4: 0 | G4: 0 | H4: 0 | I4: 0 | J4: 0 | K4: 0 | L4: 0
B5: 100 | C5: =64/$B5 -> 0.64 | D5: 0.64 | E5: 0.64 | F5: 0.64 | G5: 0.64 | H5: 0.64 | I5: 0.64 | J5: 0.64 | K5: 0.64 | L5: 0.64
B6: 200 | C6: 0.32 | D6: 0.32 | E6: 0.32 | F6: 0.32 | G6: 0.32 | H6: 0.32 | I6: 0.32 | J6: 0.32 | K6: 0.32 | L6: 0.32
B7: 300 | C7: 0.2133333333 | D7: 0.2133333333 | E7: 0.2133333333 | F7: 0.2133333333 | G7: 0.2133333333 | H7: 0.2133333333 | I7: 0.2133333333 | J7: 0.2133333333 | K7: 0.2133333333 | L7: 0.2133333333
B8: 400 | C8: 0.16 | D8: 0.16 | E8: 0.16 | F8: 0.16 | G8: 0.16 | H8: 0.16 | I8: 0.16 | J8: 0.16 | K8: 0.16 | L8: 0.16
B9: 500 | C9: 0.128 | D9: 0.128 | E9: 0.128 | F9: 0.128 | G9: 0.128 | H9: 0.128 | I9: 0.128 | J9: 0.128 | K9: 0.128 | L9: 0.128
B10: 600 | C10: 0.12 | D10: =64/$B10 -> 0.1066666667 | E10: 0.1066666667 | F10: 0.1066666667 | G10: 0.1066666667 | H10: 0.1066666667 | I10: 0.1066666667 | J10: 0.1066666667 | K10: 0.1066666667 | L10: 0.1066666667
B11: 700 | C11: 0.11 | D11: 0.103 | E11: =64/$B11 -> 0.09142857143 | F11: 0.09142857143 | G11: 0.09142857143 | H11: 0.09142857143 | I11: 0.09142857143 | J11: 0.09142857143 | K11: 0.09142857143 | L11: 0.09142857143
B12: 800 | C12: 0.11 | D12: 0.103 | E12: 0.091 | F12: 0.091 | G12: 0.091 | H12: 0.09 | I12: 0.09 | J12: 0.09 | K12: 0.09 | L12: 0.09
B13: 900 | C13: 0.11 | D13: 0.103 | E13: 0.091 | F13: 0.091 | G13: 0.091 | H13: 0.09 | I13: 0.09 | J13: 0.09 | K13: 0.09 | L13: 0.09
B14: 1000 | C14: 0.11 | D14: 0.103 | E14: 0.091 | F14: 0.091 | G14: 0.091 | H14: 0.09 | I14: 0.09 | J14: 0.09 | K14: 0.09 | L14: 0.09
B15: 1100 | C15: 0.11 | D15: 0.103 | E15: 0.091 | F15: 0.091 | G15: 0.091 | H15: 0.09 | I15: 0.09 | J15: 0.09 | K15: 0.09 | L15: 0.09
B16: 1200 | C16: 0.11 | D16: 0.103 | E16: 0.091 | F16: 0.091 | G16: 0.091 | H16: 0.09 | I16: 0.09 | J16: 0.09 | K16: 0.09 | L16: 0.09
B17: 1300 | C17: 0.11 | D17: 0.103 | E17: 0.091 | F17: 0.091 | G17: 0.091 | H17: 0.09 | I17: 0.09 | J17: 0.09 | K17: 0.09 | L17: 0.09
B18: 1400 | C18: 0.11 | D18: 0.103 | E18: 0.091 | F18: 0.091 | G18: 0.091 | H18: 0.09 | I18: 0.09 | J18: 0.09 | K18: 0.09 | L18: 0.09
B19: 1500 | C19: 0.11 | D19: 0.103 | E19: 0.091 | F19: 0.091 | G19: 0.091 | H19: 0.09 | I19: 0.09 | J19: 0.09 | K19: 0.09 | L19: 0.09
B20: 1600 | C20: 0.11 | D20: 0.103 | E20: 0.091 | F20: 0.091 | G20: 0.091 | H20: 0.09 | I20: 0.09 | J20: 0.09 | K20: 0.09 | L20: 0.09
B21: 1700 | C21: 0.11 | D21: 0.103 | E21: 0.091 | F21: 0.091 | G21: 0.091 | H21: 0.09 | I21: 0.09 | J21: 0.09 | K21: 0.09 | L21: 0.09
B22: 1800 | C22: 0.11 | D22: 0.103 | E22: 0.091 | F22: 0.091 | G22: 0.091 | H22: 0.09 | I22: 0.09 | J22: 0.09 | K22: 0.09 | L22: 0.09
B23: 1900 | C23: 0.11 | D23: 0.103 | E23: 0.091 | F23: 0.091 | G23: 0.091 | H23: 0.09 | I23: 0.09 | J23: 0.09 | K23: 0.09 | L23: 0.09
B24: 2000 | C24: 0.11 | D24: 0.103 | E24: 0.091 | F24: 0.091 | G24: 0.091 | H24: 0.09 | I24: 0.09 | J24: 0.09 | K24: 0.09 | L24: 0.09
B25: 2100 | C25: 0.11 | D25: 0.103 | E25: 0.091 | F25: 0.091 | G25: 0.091 | H25: 0.09 | I25: 0.09 | J25: 0.09 | K25: 0.09 | L25: 0.09
B26: 2200 | C26: 0.11 | D26: 0.103 | E26: 0.091 | F26: 0.091 | G26: 0.091 | H26: 0.09 | I26: 0.09 | J26: 0.09 | K26: 0.09 | L26: 0.09
B27: 2300 | C27: 0.11 | D27: 0.103 | E27: 0.091 | F27: 0.091 | G27: 0.091 | H27: 0.1047068377 | I27: 0.1037168573 | J27: 0.1026010145 | K27: 0.1019197631 | L27: 0.1013251474
B28: 2400 | C28: 0.1202521089 | D28: 0.1129074068 | E28: 0.1072552711 | F28: 0.1053205693 | G28: 0.1041653277 | H28: 0.1026682684 | I28: 0.1016168982 | J28: 0.1004287719 | K28: 0.09970169697 | L28: 0.09906598945
B29: 2500 | C29: 0.1191478405 | D29: 0.1115679316 | E29: 0.1056861663 | F29: 0.103660572 | G29: 0.102447603 | H29: 0.1008715752 | I29: 0.09976174857 | J29: 0.09850437816 | K29: 0.09773317014 | L29: 0.09705772834
B30: 2600 | C30: 0.1181888738 | D30: 0.1103956056 | E30: 0.10430163 | F30: 0.1021908968 | G30: 0.1009235037 | H30: 0.09927257329 | I30: 0.09810695549 | J30: 0.09678311054 | K30: 0.09596931127 | L30: 0.09525537206
B31: 2700 | C31: 0.1173479108 | D31: 0.109360158 | E31: 0.1030693791 | F31: 0.1008786792 | G31: 0.09955985177 | H31: 0.09783771938 | I31: 0.09661874831 | J31: 0.09523097016 | K31: 0.09437599623 | L31: 0.09362469541
B32: 2800 | C32: 0.1166041632 | D32: 0.1084383548 | E32: 0.1019644833 | F32: 0.09969849123 | G32: 0.09833095012 | H32: 0.09654100237 | I32: 0.09527092024 | J32: 0.09382155441 | K32: 0.09292671554 | L32: 0.09213910298
B33: 2900 | C33: 0.1159415036 | D33: 0.1076120368 | E33: 0.1009673395 | F33: 0.09863030037 | G33: 0.09721653252 | H33: 0.09536188281 | I33: 0.0940427616 | J33: 0.09253398363 | K33: 0.09160049712 | L33: 0.09077754869
B34: 3000 | C34: 0.1153472185 | D34: 0.1068667858 | E34: 0.1000622906 | F34: 0.09765807558 | G34: 0.09620036368 | H34: 0.09428388571 | I34: 0.0929176479 | J34: 0.0913514843 | K34: 0.09038048668 | L34: 0.08952311387
B35: 3100 | C35: 0.114811143 | D35: 0.1061909954 | E35: 0.0992366594 | F35: 0.09676881198 | G35: 0.09526925868 | H35: 0.09329361432 | I35: 0.09188205 | J35: 0.09026039541 | K35: 0.089252952 | L35: 0.08836200972
B36: 3200 | C36: 0.1143250483 | D36: 0.104 | E36: 0.09848005762 | F36: 0.09595183209 | G36: 0.09441238038 | H36: 0.09238004291 | I36: 0.09092482416 | J36: 0.0892494557 | K36: 0.08820656851 | L36: 0.08728286155
B37: 3300 | C37: 0.1138821985 | D37: 0.104 | E37: 0.09778388105 | F37: 0.09519827526 | G37: 0.09362072578 | H37: 0.09153399971 | I37: 0.0900366927 | J37: 0.08830928204 | K37: 0.0872318964 | L37: 0.08627618484
B38: 3400 | C38: 0.1134770245 | D38: 0.104 | E38: 0.09714093492 | F38: 0.09450071817 | G38: 0.09288674398 | H38: 0.09074778199 | I38: 0.08920985733 | J38: 0.08743198099 | K38: 0.08632099114 | L38: 0.08533399487
B39: 3500 | C39: 0.1131048804 | D39: 0.104 | E39: 0.09654515119 | F39: 0.09385288816 | G39: 0.09220404749 | H39: 0.09001486497 | I39: 0.08843770667 | J39: 0.0866108548 | K39: 0.08546710874 | L39: 0.08444951136
B40: 3600 | C40: 0.11 | D40: 0.104 | E40: 0.09599137216 | F40: 0.09324944362 | G40: 0.09156719091 | H40: 0.08932967873 | I40: 0.08771459192 | J40: 0.08584017599 | K40: 0.08466447956 | L40: 0.0836169317
B41: 3700 | C41: 0.11 | D41: 0.104 | E41: 0.09547518286 | F41: 0.0926858037 | G41: 0.09097149927 | H41: 0.08868743481 | I41: 0.08703565257 | J41: 0.08511501197 | K41: 0.0839081325 | L41: 0.08283125471
B42: 3800 | C42: 0.11 | D42: 0.104 | E42: 0.0949927797 | F42: 0.0921580146 | G42: 0.09041293315 | H42: 0.08808399008 | I42: 0.08639667934 | J42: 0.08443108729 | K42: 0.08319375671 | L42: 0.08208814195
B43: 3900 | C43: 0.11 | D43: 0.104 | E43: 0.0945408663 | F43: 0.09166264365 | G43: 0.08988798166 | H43: 0.08751573861 | I43: 0.08579400548 | J43: 0.08378467416 | K43: 0.08251759176 | L43: 0.08138380763
B44: 4000 | C44: 0.11 | D44: 0.104 | E44: 0.09411657033 | F44: 0.09119669439 | G44: 0.08939357681 | H44: 0.08697952498 | I44: 0.08522441941 | J44: 0.08317250457 | K44: 0.08187633946 | L44: 0.08071493013
B45: 4100 | C45: 0.11 | D45: 0.104 | E45: 0.09371737635 | F45: 0.09075753802 | G45: 0.08892702415 | H45: 0.08647257418 | I45: 0.08468509418 | J45: 0.08259169922 | K45: 0.08126709252 | L45: 0.08007858042
B46: 4200 | C46: 0.11 | D46: 0.104 | E46: 0.09 | F46: 0.09034285764 | G46: 0.08848594637 | H46: 0.08599243448 | I46: 0.08417352986 | J46: 0.08203970948 | K46: 0.08068727625 | L46: 0.07947216367
B47: 4300 | C47: 0.11 | D47: 0.104 | E47: 0.09 | F47: 0.08995060238 | G47: 0.08806823695 | H47: 0.08553693043 | I47: 0.08368750621 | J47: 0.08151426974 | K47: 0.08013460072 | L47: 0.07889337113
B48: 4400 | C48: 0.11 | D48: 0.104 | E48: 0.09 | F48: 0.08957894964 | G48: 0.08767202182 | H48: 0.08510412403 | I48: 0.08322504348 | J48: 0.08101335786 | K48: 0.07960702106 | L48: 0.07834014035
B49: 4500 | C49: 0.11 | D49: 0.104 | E49: 0.09 | F49: 0.086 | G49: 0.08729562751 | H49: 0.08469228236 | I49: 0.08278436979 | J49: 0.08053516227 | K49: 0.0791027044 | L49: 0.07781062202
B50: 4600 | C50: 0.11 | D50: 0.104 | E50: 0.09 | F50: 0.086 | G50: 0.08693755446 | H50: 0.08429985049 | I50: 0.08236389378 | J50: 0.08007805438 | K50: 0.07862000212 | L50: 0.07730315206
B51: 4700 | C51: 0.11 | D51: 0.104 | E51: 0.09 | F51: 0.086 | G51: 0.08659645451 | H51: 0.08392542861 | I51: 0.08196218151 | J51: 0.07964056528 | K51: 0.0781574265 | L51: 0.07681622822
B52: 4800 | C52: 0.11 | D52: 0.104 | E52: 0.09 | F52: 0.086 | G52: 0.0862711119 | H52: 0.08356775273 | I52: 0.08157793696 | J52: 0.07922136603 | K52: 0.07771363082 | L52: 0.07634849009
B53: 4900 | C53: 0.11 | D53: 0.104 | E53: 0.09 | F53: 0.086 | G53: 0.08596042711 | H53: 0.08322567815 | I53: 0.08120998537 | J53: 0.07881925083 | K53: 0.07728739252 | L53: 0.07589870217
B54: 5000 | C54: 0.11 | D54: 0.104 | E54: 0.09 | F54: 0.086 | G54: 0.082 | H54: 0.08289816543 | I54: 0.08085725897 | J54: 0.07843312263 | K54: 0.07687759869 | L54: 0.07546573933
B55: 6000 | C55: 0.11 | D55: 0.104 | E55: 0.09 | F55: 0.086 | G55: 0.082 | H55: 0.08 | I55: 0.08051878476 | J55: 0.07806198074 | K55: 0.07648323363 | L55: 0.07504857426
B56: 7000 | C56: 0.11 | D56: 0.104 | E56: 0.09 | F56: 0.086 | G56: 0.082 | H56: 0.08 | I56: 0.077 | J56: 0.07770491017 | K56: 0.07610336809 | L56: 0.07464626674
B57: 8000 | C57: 0.11 | D57: 0.104 | E57: 0.09 | F57: 0.086 | G57: 0.082 | H57: 0.08 | I57: 0.077 | J57: 0.072 | K57: 0.07573714996 | L57: 0.0742579542
B58: 9000 | C58: 0.11 | D58: 0.104 | E58: 0.09 | F58: 0.086 | G58: 0.082 | H58: 0.08 | I58: 0.077 | J58: 0.072 | K58: 0.068 | L58: 0.07388284361
B59: 10000 | C59: 0.11 | D59: 0.104 | E59: 0.09 | F59: 0.086 | G59: 0.082 | H59: 0.08 | I59: 0.077 | J59: 0.072 | K59: 0.068 | L59: 0.064
B60: 11000 | C60: 0.11 | D60: 0.104 | E60: 0.09 | F60: 0.086 | G60: 0.082 | H60: 0.08 | I60: 0.077 | J60: 0.072 | K60: 0.068 | L60: 0.064
B61: 12000 | C61: 0.11 | D61: 0.104 | E61: 0.09 | F61: 0.086 | G61: 0.082 | H61: 0.08 | I61: 0.077 | J61: 0.072 | K61: 0.068 | L61: 0.064
B62: 13000 | C62: 0.11 | D62: 0.104 | E62: 0.09 | F62: 0.086 | G62: 0.082 | H62: 0.08 | I62: 0.077 | J62: 0.072 | K62: 0.068 | L62: 0.064
B63: 14000 | C63: 0.11 | D63: 0.104 | E63: 0.09 | F63: 0.086 | G63: 0.082 | H63: 0.08 | I63: 0.077 | J63: 0.072 | K63: 0.068 | L63: 0.064
B64: 15000 | C64: 0.11 | D64: 0.104 | E64: 0.09 | F64: 0.086 | G64: 0.082 | H64: 0.08 | I64: 0.077 | J64: 0.072 | K64: 0.068 | L64: 0.064
B65: 16000 | C65: 0.11 | D65: 0.104 | E65: 0.09 | F65: 0.086 | G65: 0.082 | H65: 0.08 | I65: 0.077 | J65: 0.072 | K65: 0.068 | L65: 0.064
B66: 17000 | C66: 0.11 | D66: 0.104 | E66: 0.09 | F66: 0.086 | G66: 0.082 | H66: 0.08 | I66: 0.077 | J66: 0.072 | K66: 0.068 | L66: 0.064
B67: 18000 | C67: 0.11 | D67: 0.104 | E67: 0.09 | F67: 0.086 | G67: 0.082 | H67: 0.08 | I67: 0.077 | J67: 0.072 | K67: 0.068 | L67: 0.064
B68: 19000 | C68: 0.11 | D68: 0.104 | E68: 0.09 | F68: 0.086 | G68: 0.082 | H68: 0.08 | I68: 0.077 | J68: 0.072 | K68: 0.068 | L68: 0.064
B69: 20000 | C69: 0.11 | D69: 0.104 | E69: 0.09 | F69: 0.086 | G69: 0.082 | H69: 0.08 | I69: 0.077 | J69: 0.072 | K69: 0.068 | L69: 0.064
B70: 21000 | C70: 0.111 | D70: 0.104 | E70: 0.09 | F70: 0.086 | G70: 0.082 | H70: 0.08 | I70: 0.077 | J70: 0.072 | K70: 0.068 | L70: 0.064
B71: 22000 | C71: 0.112 | D71: 0.104 | E71: 0.09 | F71: 0.086 | G71: 0.082 | H71: 0.08 | I71: 0.077 | J71: 0.072 | K71: 0.068 | L71: 0.064
B72: 23000 | C72: 0.113 | D72: 0.104 | E72: 0.09 | F72: 0.086 | G72: 0.082 | H72: 0.08 | I72: 0.077 | J72: 0.072 | K72: 0.068 | L72: 0.064
B73: 24000 | C73: 0.114 | D73: 0.104 | E73: 0.09 | F73: 0.086 | G73: 0.082 | H73: 0.08 | I73: 0.077 | J73: 0.072 | K73: 0.068 | L73: 0.064
B74: 25000 | C74: 0.115 | D74: 0.104 | E74: 0.09 | F74: 0.086 | G74: 0.082 | H74: 0.08 | I74: 0.077 | J74: 0.072 | K74: 0.068 | L74: 0.064
B75: 26000 | C75: 0.116 | D75: 0.104 | E75: 0.09 | F75: 0.086 | G75: 0.082 | H75: 0.08 | I75: 0.077 | J75: 0.072 | K75: 0.068 | L75: 0.064
B76: 27000 | C76: 0.117 | D76: 0.104 | E76: 0.09 | F76: 0.086 | G76: 0.082 | H76: 0.08 | I76: 0.077 | J76: 0.072 | K76: 0.068 | L76: 0.064
B77: 28000 | C77: 0.118 | D77: 0.104 | E77: 0.09 | F77: 0.086 | G77: 0.082 | H77: 0.08 | I77: 0.077 | J77: 0.072 | K77: 0.068 | L77: 0.064
B78: 29000 | C78: 0.119 | D78: 0.104 | E78: 0.09 | F78: 0.086 | G78: 0.082 | H78: 0.08 | I78: 0.077 | J78: 0.072 | K78: 0.068 | L78: 0.064
B79: 30000 | C79: 0.12 | D79: 0.104 | E79: 0.09 | F79: 0.086 | G79: 0.082 | H79: 0.08 | I79: 0.077 | J79: 0.072 | K79: 0.068 | L79: 0.064
B80: 31000 | C80: 0.123 | D80: 0.1046 | E80: 0.09 | F80: 0.086 | G80: 0.082 | H80: 0.08 | I80: 0.077 | J80: 0.072 | K80: 0.068 | L80: 0.064
B81: 32000 | C81: 0.126 | D81: 0.1052 | E81: 0.09 | F81: 0.086 | G81: 0.082 | H81: 0.08 | I81: 0.077 | J81: 0.072 | K81: 0.068 | L81: 0.064
B82: 33000 | C82: 0.129 | D82: 0.1058 | E82: 0.09 | F82: 0.086 | G82: 0.082 | H82: 0.08 | I82: 0.077 | J82: 0.072 | K82: 0.068 | L82: 0.064
B83: 34000 | C83: 0.132 | D83: 0.1064 | E83: 0.09 | F83: 0.086 | G83: 0.082 | H83: 0.08 | I83: 0.077 | J83: 0.072 | K83: 0.068 | L83: 0.064
B84: 35000 | C84: 0.135 | D84: 0.107 | E84: 0.09 | F84: 0.086 | G84: 0.082 | H84: 0.08 | I84: 0.077 | J84: 0.072 | K84: 0.068 | L84: 0.064
B85: 36000 | C85: 0.138 | D85: 0.1076 | E85: 0.09 | F85: 0.086 | G85: 0.082 | H85: 0.08 | I85: 0.077 | J85: 0.072 | K85: 0.068 | L85: 0.064
B86: 37000 | C86: 0.141 | D86: 0.1082 | E86: 0.09 | F86: 0.086 | G86: 0.082 | H86: 0.08 | I86: 0.077 | J86: 0.072 | K86: 0.068 | L86: 0.064
B87: 38000 | C87: 0.144 | D87: 0.1088 | E87: 0.09 | F87: 0.086 | G87: 0.082 | H87: 0.08 | I87: 0.077 | J87: 0.072 | K87: 0.068 | L87: 0.064
B88: 39000 | C88: 0.147 | D88: 0.1094 | E88: 0.09 | F88: 0.086 | G88: 0.082 | H88: 0.08 | I88: 0.077 | J88: 0.072 | K88: 0.068 | L88: 0.064
B89: 40000 | C89: 0.15 | D89: 0.11 | E89: 0.09 | F89: 0.086 | G89: 0.082 | H89: 0.08 | I89: 0.077 | J89: 0.072 | K89: 0.068 | L89: 0.064
B90: 41000 | C90: 0.151 | D90: 0.111 | E90: 0.091 | F90: 0.086 | G90: 0.082 | H90: 0.08 | I90: 0.077 | J90: 0.072 | K90: 0.068 | L90: 0.064
B91: 42000 | C91: 0.156 | D91: 0.112 | E91: 0.092 | F91: 0.086 | G91: 0.082 | H91: 0.08 | I91: 0.077 | J91: 0.072 | K91: 0.068 | L91: 0.064
B92: 43000 | C92: 0.159 | D92: 0.113 | E92: 0.093 | F92: 0.086 | G92: 0.082 | H92: 0.08 | I92: 0.077 | J92: 0.072 | K92: 0.068 | L92: 0.064
B93: 44000 | C93: 0.162 | D93: 0.114 | E93: 0.094 | F93: 0.086 | G93: 0.082 | H93: 0.08 | I93: 0.077 | J93: 0.072 | K93: 0.068 | L93: 0.064
B94: 45000 | C94: 0.165 | D94: 0.115 | E94: 0.095 | F94: 0.086 | G94: 0.082 | H94: 0.08 | I94: 0.077 | J94: 0.072 | K94: 0.068 | L94: 0.064
B95: 46000 | C95: 0.168 | D95: 0.116 | E95: 0.096 | F95: 0.087 | G95: 0.082 | H95: 0.08 | I95: 0.077 | J95: 0.072 | K95: 0.068 | L95: 0.064
B96: 47000 | C96: 0.171 | D96: 0.117 | E96: 0.097 | F96: 0.088 | G96: 0.082 | H96: 0.08 | I96: 0.077 | J96: 0.072 | K96: 0.068 | L96: 0.064
B97: 48000 | C97: 0.174 | D97: 0.12 | E97: 0.098 | F97: 0.088 | G97: 0.082 | H97: 0.08 | I97: 0.077 | J97: 0.072 | K97: 0.068 | L97: 0.064
B98: 49000 | C98: 0.18 | D98: 0.123 | E98: 0.099 | F98: 0.089 | G98: 0.082 | H98: 0.08 | I98: 0.077 | J98: 0.072 | K98: 0.068 | L98: 0.064
B99: 50000 | C99: 0.185 | D99: 0.125 | E99: 0.1 | F99: 0.09 | G99: 0.082 | H99: 0.08 | I99: 0.077 | J99: 0.072 | K99: 0.068 | L99: 0.064
B100: 55000 | C100: 0.195 | D100: 0.133 | E100: 0.1025 | F100: =E100/2+G100/2 -> 0.09225 | G100: 0.082 | H100: 0.08 | I100: 0.077 | J100: 0.072 | K100: 0.068 | L100: 0.064
B101: 60000 | C101: 0.2 | D101: 0.141 | E101: 0.105 | F101: =E101/2+G101/2 -> 0.0935 | G101: 0.082 | H101: 0.08 | I101: 0.077 | J101: 0.072 | K101: 0.068 | L101: 0.064
B102: 65000 | C102: 0.205 | D102: 0.152 | E102: 0.1075 | F102: 0.09619 | G102: 0.08488 | H102: 0.082 | I102: 0.077 | J102: 0.072 | K102: 0.068 | L102: 0.064
B103: 70000 | C103: 0.21 | D103: 0.165 | E103: 0.11 | F103: 0.09888 | G103: 0.08776 | H103: 0.085 | I103: 0.077 | J103: 0.072 | K103: 0.068 | L103: 0.064
B104: 75000 | C104: 0.214 | D104: 0.17 | E104: 0.1125 | F104: 0.103 | G104: 0.09064 | H104: 0.09064 | I104: 0.08 | J104: 0.072 | K104: 0.068 | L104: 0.064
B105: 80000 | C105: 0.217 | D105: 0.18 | E105: 0.118 | F105: 0.10576 | G105: 0.09352 | H105: 0.093 | I105: 0.0844 | J105: 0.072 | K105: 0.068 | L105: 0.064
B106: 85000 | C106: 0.22 | D106: 0.187 | E106: 0.1225 | F106: 0.10825 | G106: 0.094 | H106: 0.0964 | I106: 0.08625 | J106: 0.072 | K106: 0.068 | L106: 0.064
B107: 90000 | C107: 0.223 | D107: 0.195 | E107: 0.128 | F107: 0.1145 | G107: 0.09928 | H107: 0.098 | I107: 0.0881 | J107: 0.072 | K107: 0.068 | L107: 0.064
B108: 95000 | C108: 0.226 | D108: 0.198 | E108: 0.133 | F108: 0.116 | G108: 0.10216 | H108: 0.10216 | I108: 0.08995 | J108: 0.072 | K108: 0.068 | L108: 0.064
B109: 100000 | C109: 0.229 | D109: 0.205 | E109: 0.14 | F109: 0.12325 | G109: 0.1065 | H109: 0.10504 | I109: 0.09578 | J109: 0.078 | K109: 0.07 | L109: 0.06577
B110: 110000 | C110: 0.23 | D110: 0.21 | E110: 0.148 | F110: 0.131 | G110: 0.114 | H110: 0.1118 | I110: 0.10161 | J110: 0.082 | K110: 0.0725 | L110: 0.06754
B111: 120000 | C111: 0.23 | D111: 0.21 | E111: 0.152 | F111: 0.13528 | G111: 0.11856 | H111: 0.11856 | I111: 0.10744 | J111: 0.086 | K111: 0.075 | L111: 0.06931
B112: 130000 | C112: 0.23 | D112: 0.21 | E112: 0.158 | F112: 0.14166 | G112: 0.12532 | H112: 0.12532 | I112: 0.11327 | J112: 0.09 | K112: 0.0775 | L112: 0.07108
B113: 140000 | C113: 0.23 | D113: 0.21 | E113: 0.164 | F113: 0.14804 | G113: 0.13208 | H113: 0.131 | I113: 0.1191 | J113: 0.094 | K113: 0.08 | L113: 0.07285
B114: 150000 | C114: 0.23 | D114: 0.21 | E114: 0.172 | F114: 0.157 | G114: 0.13884 | H114: 0.13884 | I114: 0.12493 | J114: 0.098 | K114: 0.0825 | L114: 0.07462
B115: 160000 | C115: 0.23 | D115: 0.21 | E115: 0.176 | F115: 0.161 | G115: 0.146 | H115: 0.1456 | I115: 0.13076 | J115: 0.102 | K115: 0.085 | L115: 0.07639
B116: 170000 | C116: 0.23 | D116: 0.21 | E116: 0.182 | F116: 0.16718 | G116: 0.15236 | H116: 0.15236 | I116: 0.13659 | J116: 0.106 | K116: 0.0875 | L116: 0.07816
B117: 180000 | C117: 0.23 | D117: 0.21 | E117: 0.189 | F117: =E117/2+G117/2 -> 0.17406 | G117: 0.15912 | H117: 0.15912 | I117: 0.14242 | J117: 0.11 | K117: 0.09 | L117: 0.07993
B118: 200000 | C118: 0.23 | D118: 0.21 | E118: 0.2 | F118: 0.1825 | G118: 0.165 | H118: 0.165 | I118: 0.14825 | J118: 0.12 | K118: 0.1 | L118: 0.09
B119: 1000000 | C119: 0.23 | D119: 0.21 | E119: 0.2 | F119: =E119/2+G119/2 -> 0.1825 | G119: 0.165 | H119: 0.165 | I119: 0.15408 | J119: 0.14 | K119: 0.13 | L119: 0.12
B122: r/d | C122: DN 08 | D122: DN 12 | E122: DN 15 | F122: DN 18 | G122: DN 20 | H122: DN 23 | I122: DN 25 | J122: DN 32 | K122: DN 40 | L122: DN 50
B123: 0 | C123: 0 | D123: 0 | E123: 0 | F123: 0 | G123: 0 | H123: 0 | I123: 0 | J123: 0 | K123: 0 | L123: 0
B124: 1 | C124: 3.2217 | D124: 3.0807 | E124: 2.9396 | F124: 2.7282 | G124: 2.5869 | H124: 2.5869 | I124: 2.5869 | J124: 2.5869 | K124: =64/$B124 -> 64 | L124: 64
B125: 1.1 | C125: 3.1696 | D125: 3.03021 | E125: 2.89072 | F125: 2.681756 | G125: 2.542036 | H125: 2.542036 | I125: 2.542036 | J125: 2.542036 | K125: 58.18181818 | L125: 58.18181818
B126: 1.2 | C126: 3.11836 | D126: 2.98056 | E126: 2.84266 | F126: 2.636104 | G126: 2.497944 | H126: 2.497944 | I126: 2.497944 | J126: 2.497944 | K126: 53.33333333 | L126: 53.33333333
B127: 1.3 | C127: 3.06798 | D127: 2.93175 | E127: 2.79542 | F127: 2.591244 | G127: 2.454624 | H127: 2.454624 | I127: 2.454624 | J127: 2.454624 | K127: 49.23076923 | L127: 49.23076923
B128: 1.4 | C128: 3.01846 | D128: 2.88378 | E128: 2.749 | F128: 2.547176 | G128: 2.412076 | H128: 2.412076 | I128: 2.412076 | J128: 2.412076 | K128: 45.71428571 | L128: 45.71428571
B129: 1.5 | C129: 2.9698 | D129: 2.83665 | E129: 2.7034 | F129: 2.5039 | G129: 2.3703 | H129: 2.3703 | I129: 2.3703 | J129: 2.3703 | K129: 42.66666667 | L129: 42.66666667
B130: 1.6 | C130: 2.922 | D130: 2.79036 | E130: 2.65862 | F130: 2.461416 | G130: 2.329296 | H130: 2.329296 | I130: 2.329296 | J130: 2.329296 | K130: 40 | L130: 40
B131: 1.7 | C131: 2.87506 | D131: 2.74491 | E131: 2.61466 | F131: 2.419724 | G131: 2.289064 | H131: 2.289064 | I131: 2.289064 | J131: 2.289064 | K131: 0.09 | L131: 0.09
B132: 1.8 | C132: 2.82898 | D132: 2.7003 | E132: 2.57152 | F132: 2.378824 | G132: 2.249604 | H132: 2.249604 | I132: 2.249604 | J132: 2.249604 | K132: 0.09 | L132: 0.09
B133: 1.9 | C133: 2.78376 | D133: 2.65653 | E133: 2.5292 | F133: 2.338716 | G133: 2.210916 | H133: 2.210916 | I133: 2.210916 | J133: 2.210916 | K133: 0.09 | L133: 0.09
B134: 2 | C134: 2.7394 | D134: 2.6136 | E134: 2.4877 | F134: 2.2994 | G134: 2.173 | H134: 2.173 | I134: 2.173 | J134: 2.173 | K134: 0.09 | L134: 0.09
B135: 2.1 | C135: 2.6959 | D135: 2.57151 | E135: 2.44702 | F135: 2.260876 | G135: 2.135856 | H135: 2.135856 | I135: 2.135856 | J135: 2.135856 | K135: 0.09 | L135: 0.09
B136: 2.2 | C136: 2.65326 | D136: 2.53026 | E136: 2.40716 | F136: 2.223144 | G136: 2.099484 | H136: 2.099484 | I136: 2.099484 | J136: 2.099484 | K136: 0.09 | L136: 0.09
B137: 2.3 | C137: 2.61148 | D137: 2.48985 | E137: 2.36812 | F137: 2.186204 | G137: 2.063884 | H137: 2.063884 | I137: 2.063884 | J137: 2.063884 | K137: 0.09 | L137: 0.09
B138: 2.4 | C138: 2.57056 | D138: 2.45028 | E138: 2.3299 | F138: 2.150056 | G138: 2.029056 | H138: 2.029056 | I138: 2.029056 | J138: 2.029056 | K138: 0.09 | L138: 0.09
B139: 2.5 | C139: 2.5305 | D139: 2.41155 | E139: 2.2925 | F139: 2.1147 | G139: 1.995 | H139: 1.995 | I139: 1.995 | J139: 1.995 | K139: 0.09 | L139: 0.09
B140: 2.6 | C140: 2.4913 | D140: 2.37366 | E140: 2.25592 | F140: 2.080136 | G140: 1.961716 | H140: 1.961716 | I140: 1.961716 | J140: 1.961716 | K140: 0.09 | L140: 0.09
B141: 2.7 | C141: 2.45296 | D141: 2.33661 | E141: 2.22016 | F141: 2.046364 | G141: 1.929204 | H141: 1.929204 | I141: 1.929204 | J141: 1.929204 | K141: 0.09 | L141: 0.09
B142: 2.8 | C142: 2.41548 | D142: 2.3004 | E142: 2.18522 | F142: 2.013384 | G142: 1.897464 | H142: 1.897464 | I142: 1.897464 | J142: 1.897464 | K142: 0.09 | L142: 0.09
B143: 2.9 | C143: 2.37886 | D143: 2.26503 | E143: 2.1511 | F143: 1.981196 | G143: 1.866496 | H143: 1.866496 | I143: 1.866496 | J143: 1.866496 | K143: 0.09 | L143: 0.09
B144: 3 | C144: 2.3431 | D144: 2.2305 | E144: 2.1178 | F144: 1.9498 | G144: 1.8363 | H144: 1.8363 | I144: 1.8363 | J144: 1.8363 | K144: 0.09 | L144: 0.09
B145: 3.1 | C145: 2.3082 | D145: 2.19681 | E145: 2.08532 | F145: 1.919196 | G145: 1.806876 | H145: 1.806876 | I145: 1.806876 | J145: 1.806876 | K145: 0.09 | L145: 0.09
B146: 3.2 | C146: 2.27416 | D146: 2.16396 | E146: 2.05366 | F146: 1.889384 | G146: 1.778224 | H146: 1.778224 | I146: 1.778224 | J146: 1.778224 | K146: 0.1073701888 | L146: 0.1068624507
B147: 3.3 | C147: 2.24098 | D147: 2.13195 | E147: 2.02282 | F147: 1.860364 | G147: 1.750344 | H147: 1.750344 | I147: 1.750344 | J147: 1.750344 | K147: 0.1044478819 | L147: 0.1038958621
B148: 3.4 | C148: 2.20866 | D148: 2.10078 | E148: 1.9928 | F148: 1.832136 | G148: 1.723236 | H148: 1.723236 | I148: 1.723236 | J148: 1.723236 | K148: 0.1019197631 | L148: 0.1013251474
B149: 3.5 | C149: 2.1772 | D149: 2.07045 | E149: 1.9636 | F149: 1.8047 | G149: 1.6969 | H149: 1.6969 | I149: 1.6969 | J149: 1.6969 | K149: 0.09970169697 | L149: 0.09906598945
B150: 3.6 | C150: 2.1466 | D150: 2.04096 | E150: 1.93522 | F150: 1.778056 | G150: 1.671336 | H150: 1.671336 | I150: 1.671336 | J150: 1.671336 | K150: 0.09773317014 | L150: 0.09705772834
B151: 3.7 | C151: 2.11686 | D151: 2.01231 | E151: 1.90766 | F151: 1.752204 | G151: 1.646544 | H151: 1.646544 | I151: 1.646544 | J151: 1.646544 | K151: 0.09596931127 | L151: 0.09525537206
B152: 3.8 | C152: 2.08798 | D152: 1.9845 | E152: 1.88092 | F152: 1.727144 | G152: 1.622524 | H152: 1.622524 | I152: 1.622524 | J152: 1.622524 | K152: 0.09437599623 | L152: 0.09362469541
B153: 3.9 | C153: 2.05996 | D153: 1.95753 | E153: 1.855 | F153: 1.702876 | G153: 1.599276 | H153: 1.599276 | I153: 1.599276 | J153: 1.599276 | K153: 0.09292671554 | L153: 0.09213910298
B154: 4 | C154: 2.0328 | D154: 1.9314 | E154: 1.8299 | F154: 1.6794 | G154: 1.5768 | H154: 1.5768 | I154: 1.5768 | J154: 1.5768 | K154: 0.09160049712 | L154: 0.09077754869
B155: 4.1 | C155: 2.0065 | D155: 1.90611 | E155: 1.80562 | F155: 1.656716 | G155: 1.555096 | H155: 1.555096 | I155: 1.555096 | J155: 1.555096 | K155: 0.09038048668 | L155: 0.08952311387
B156: 4.2 | C156: 1.98106 | D156: 1.88166 | E156: 1.78216 | F156: 1.634824 | G156: 1.534164 | H156: 1.534164 | I156: 1.534164 | J156: 1.534164 | K156: 0.089252952 | L156: 0.08836200972
B157: 4.3 | C157: 1.95648 | D157: 1.85805 | E157: 1.75952 | F157: 1.613724 | G157: 1.514004 | H157: 1.514004 | I157: 1.514004 | J157: 1.514004 | K157: 0.08820656851 | L157: 0.08728286155
B158: 4.4 | C158: 1.93276 | D158: 1.83528 | E158: 1.7377 | F158: 1.593416 | G158: 1.494616 | H158: 1.494616 | I158: 1.494616 | J158: 1.494616 | K158: 0.0872318964 | L158: 0.08627618484
B159: 4.5 | C159: 1.9099 | D159: 1.81335 | E159: 1.7167 | F159: 1.5739 | G159: 1.476 | H159: 1.476 | I159: 1.476 | J159: 1.476 | K159: 0.08632099114 | L159: 0.08533399487
B160: 4.6 | C160: 1.8879 | D160: 1.79226 | E160: 1.69652 | F160: 1.555176 | G160: 1.458156 | H160: 1.458156 | I160: 1.458156 | J160: 1.458156 | K160: 0.08546710874 | L160: 0.08444951136
B161: 4.7 | C161: 1.86676 | D161: 1.77201 | E161: 1.67716 | F161: 1.537244 | G161: 1.441084 | H161: 1.441084 | I161: 1.441084 | J161: 1.441084 | K161: 0.08466447956 | L161: 0.0836169317
B162: 4.8 | C162: 1.84648 | D162: 1.7526 | E162: 1.65862 | F162: 1.520104 | G162: 1.424784 | H162: 1.424784 | I162: 1.424784 | J162: 1.424784 | K162: 0.0839081325 | L162: 0.08283125471
B163: 4.9 | C163: 1.82706 | D163: 1.73403 | E163: 1.6409 | F163: 1.503756 | G163: 1.409256 | H163: 1.409256 | I163: 1.409256 | J163: 1.409256 | K163: 0.08319375671 | L163: 0.08208814195
B164: 5 | C164: 1.8085 | D164: 1.7163 | E164: 1.624 | F164: 1.4882 | G164: 1.3945 | H164: 1.3945 | I164: 1.3945 | J164: 1.3945 | K164: 0.08251759176 | L164: 0.08138380763
B165: 5.1 | C165: 1.7908 | D165: 1.69941 | E165: 1.60792 | F165: 1.473436 | G165: 1.380516 | H165: 1.380516 | I165: 1.380516 | J165: 1.380516 | K165: 0.08187633946 | L165: 0.08071493013
B166: 5.2 | C166: 1.77396 | D166: 1.68336 | E166: 1.59266 | F166: 1.459464 | G166: 1.367304 | H166: 1.367304 | I166: 1.367304 | J166: 1.367304 | K166: 0.08126709252 | L166: 0.08007858042
B167: 5.3 | C167: 1.75798 | D167: 1.66815 | E167: 1.57822 | F167: 1.446284 | G167: 1.354864 | H167: 1.354864 | I167: 1.354864 | J167: 1.354864 | K167: 0.08068727625 | L167: 0.07947216367
B168: 5.4 | C168: 1.74286 | D168: 1.65378 | E168: 1.5646 | F168: 1.433896 | G168: 1.343196 | H168: 1.343196 | I168: 1.343196 | J168: 1.343196 | K168: 0.08013460072 | L168: 0.07889337113
B169: 5.5 | C169: 1.7286 | D169: 1.64025 | E169: 1.5518 | F169: 1.4223 | G169: 1.3323 | H169: 1.3323 | I169: 1.3323 | J169: 1.3323 | K169: 0.07960702106 | L169: 0.07834014035
B170: 5.6 | C170: 1.7152 | D170: 1.62756 | E170: 1.53982 | F170: 1.411496 | G170: 1.322176 | H170: 1.322176 | I170: 1.322176 | J170: 1.322176 | K170: 0.0791027044 | L170: 0.07781062202
B171: 5.7 | C171: 1.70266 | D171: 1.61571 | E171: 1.52866 | F171: 1.401484 | G171: 1.312824 | H171: 1.312824 | I171: 1.312824 | J171: 1.312824 | K171: 0.07862000212 | L171: 0.07730315206
B172: 5.8 | C172: 1.69098 | D172: 1.6047 | E172: 1.51832 | F172: 1.392264 | G172: 1.304244 | H172: 1.304244 | I172: 1.304244 | J172: 1.304244 | K172: 0.0781574265 | L172: 0.07681622822
B173: 5.9 | C173: 1.68016 | D173: 1.59453 | E173: 1.5088 | F173: 1.383836 | G173: 1.296436 | H173: 1.296436 | I173: 1.296436 | J173: 1.296436 | K173: 0.07771363082 | L173: 0.07634849009
B174: 6 | C174: 1.6702 | D174: 1.5852 | E174: 1.5001 | F174: 1.3762 | G174: 1.2894 | H174: 1.2894 | I174: 1.2894 | J174: 1.2894 | K174: 0.07728739252 | L174: 0.07589870217
B175: 6.1 | C175: 1.6611 | D175: 1.57671 | E175: 1.49222 | F175: 1.369356 | G175: 1.283136 | H175: 1.283136 | I175: 1.283136 | J175: 1.283136 | K175: 0.07687759869 | L175: 0.07546573933
B176: 6.2 | C176: 1.65286 | D176: 1.56906 | E176: 1.48516 | F176: 1.363304 | G176: 1.277644 | H176: 1.277644 | I176: 1.277644 | J176: 1.277644 | K176: 0.07648323363 | L176: 0.07504857426
B177: 6.3 | C177: 1.64548 | D177: 1.56225 | E177: 1.47892 | F177: 1.358044 | G177: 1.272924 | H177: 1.272924 | I177: 1.272924 | J177: 1.272924 | K177: 0.068 | L177: 0.07464626674
B178: 6.4 | C178: 1.63896 | D178: 1.55628 | E178: 1.4735 | F178: 1.353576 | G178: 1.268976 | H178: 1.268976 | I178: 1.268976 | J178: 1.268976 | K178: 0.068 | L178: 0.064
B179: 6.5 | C179: 1.6333 | D179: 1.55115 | E179: 1.4689 | F179: 1.3499 | G179: 1.2658 | H179: 1.2658 | I179: 1.2658 | J179: 1.2658 | K179: 0.068 | L179: 0.064
B180: 6.6 | C180: 1.6285 | D180: 1.54686 | E180: 1.46512 | F180: 1.347016 | G180: 1.263396 | H180: 1.263396 | I180: 1.263396 | J180: 1.263396 | K180: 0.068 | L180: 0.064
B181: 6.7 | C181: 1.62456 | D181: 1.54341 | E181: 1.46216 | F181: 1.344924 | G181: 1.261764 | H181: 1.261764 | I181: 1.261764 | J181: 1.261764 | K181: 0.068 | L181: 0.064
B182: 6.8 | C182: 1.62148 | D182: 1.5408 | E182: 1.46002 | F182: 1.343624 | G182: 1.260904 | H182: 1.260904 | I182: 1.260904 | J182: 1.260904 | K182: 0.068 | L182: 0.064
B183: 6.9 | C183: 1.61926 | D183: 1.53903 | E183: 1.4587 | F183: 1.343116 | G183: 1.260816 | H183: 1.260816 | I183: 1.260816 | J183: 1.260816 | K183: 0.068 | L183: 0.064
B184: 7 | C184: 1.6179 | D184: 1.5381 | E184: 1.4582 | F184: 1.3434 | G184: 1.2615 | H184: 1.2615 | I184: 1.2615 | J184: 1.2615 | K184: 0.068 | L184: 0.064
B185: 7.1 | C185: 1.6174 | D185: 1.53801 | E185: 1.45852 | F185: 1.344476 | G185: 1.262956 | H185: 1.262956 | I185: 1.262956 | J185: 1.262956 | K185: 0.068 | L185: 0.064
B186: 7.2 | C186: 1.61776 | D186: 1.53876 | E186: 1.45966 | F186: 1.346344 | G186: 1.265184 | H186: 1.265184 | I186: 1.265184 | J186: 1.265184 | K186: 0.068 | L186: 0.064
B187: 7.3 | C187: 1.61898 | D187: 1.54035 | E187: 1.46162 | F187: 1.349004 | G187: 1.268184 | H187: 1.268184 | I187: 1.268184 | J187: 1.268184 | K187: 0.068 | L187: 0.064
B188: 7.4 | C188: 1.62106 | D188: 1.54278 | E188: 1.4644 | F188: 1.352456 | G188: 1.271956 | H188: 1.271956 | I188: 1.271956 | J188: 1.271956 | K188: 0.068 | L188: 0.064
B189: 7.5 | C189: 1.624 | D189: 1.54605 | E189: 1.468 | F189: 1.3567 | G189: 1.2765 | H189: 1.2765 | I189: 1.2765 | J189: 1.2765 | K189: 0.068 | L189: 0.064
B190: 7.6 | C190: 1.6278 | D190: 1.55016 | E190: 1.47242 | F190: 1.361736 | G190: 1.281816 | H190: 1.281816 | I190: 1.281816 | J190: 1.281816 | K190: 0.068 | L190: 0.064
B191: 7.7 | C191: 1.63246 | D191: 1.55511 | E191: 1.47766 | F191: 1.367564 | G191: 1.287904 | H191: 1.287904 | I191: 1.287904 | J191: 1.287904 | K191: 0.068 | L191: 0.064
B192: 7.8 | C192: 1.63798 | D192: 1.5609 | E192: 1.48372 | F192: 1.374184 | G192: 1.294764 | H192: 1.294764 | I192: 1.294764 | J192: 1.294764 | K192: 0.068 | L192: 0.064
B193: 7.9 | C193: 1.64436 | D193: 1.56753 | E193: 1.4906 | F193: 1.381596 | G193: 1.302396 | H193: 1.302396 | I193: 1.302396 | J193: 1.302396 | K193: 0.068 | L193: 0.064
B194: 8 | C194: 1.6516 | D194: 1.575 | E194: 1.4983 | F194: 1.3898 | G194: 1.3108 | H194: 1.3108 | I194: 1.3108 | J194: 1.3108 | K194: 0.068 | L194: 0.064
B195: 8.1 | C195: 1.6597 | D195: 1.58331 | E195: 1.50682 | F195: 1.398796 | G195: 1.319976 | H195: 1.319976 | I195: 1.319976 | J195: 1.319976 | K195: 0.068 | L195: 0.064
B196: 8.2 | C196: 1.66866 | D196: 1.59246 | E196: 1.51616 | F196: 1.408584 | G196: 1.329924 | H196: 1.329924 | I196: 1.329924 | J196: 1.329924 | K196: 0.068 | L196: 0.064
B197: 8.3 | C197: 1.67848 | D197: 1.60245 | E197: 1.52632 | F197: 1.419164 | G197: 1.340644 | H197: 1.340644 | I197: 1.340644 | J197: 1.340644 | K197: 0.068 | L197: 0.064
B198: 8.4 | C198: 1.68916 | D198: 1.61328 | E198: 1.5373 | F198: 1.430536 | G198: 1.352136 | H198: 1.352136 | I198: 1.352136 | J198: 1.352136 | K198: 0.068 | L198: 0.064
B199: 8.5 | C199: 1.7007 | D199: 1.62495 | E199: 1.5491 | F199: 1.4427 | G199: 1.3644 | H199: 1.3644 | I199: 1.3644 | J199: 1.3644 | K199: 0.068 | L199: 0.064
B200: 8.6 | C200: 1.7131 | D200: 1.63746 | E200: 1.56172 | F200: 1.455656 | G200: 1.377436 | H200: 1.377436 | I200: 1.377436 | J200: 1.377436 | K200: 0.068 | L200: 0.064
B201: 8.7 | C201: 1.72636 | D201: 1.65081 | E201: 1.57516 | F201: 1.469404 | G201: 1.391244 | H201: 1.391244 | I201: 1.391244 | J201: 1.391244 | K201: 0.068 | L201: 0.064
B202: 8.8 | C202: 1.74048 | D202: 1.665 | E202: 1.58942 | F202: 1.483944 | G202: 1.405824 | H202: 1.405824 | I202: 1.405824 | J202: 1.405824 | K202: 0.068 | L202: 0.064
B203: 8.9 | C203: 1.75546 | D203: 1.68003 | E203: 1.6045 | F203: 1.499276 | G203: 1.421176 | H203: 1.421176 | I203: 1.421176 | J203: 1.421176 | K203: 0.068 | L203: 0.064
B204: 9 | C204: 1.7713 | D204: 1.6959 | E204: 1.6204 | F204: 1.5154 | G204: 1.4373 | H204: 1.4373 | I204: 1.4373 | J204: 1.4373 | K204: 0.068 | L204: 0.064
... 433 more rows

Sheet Names (hidden)
B3: Medium | C3: aktuální | F3: Tube WR | G3: číslo | I3: Hose WS | J3: číslo | L3: Tube Cu | M3: číslo | O3: Temperature | Q3: Typ | R3: aktuální | S3: pom | U3: Languages | V3: aktuální | W3: pom | Y3: Unit | Z3: aktuální | AA3: pom | AB3: Sloupec1
B4: =OFFSET(Translate!B40,0,moje3) -> Voda | C4: =1*IFERROR(MATCH(TabMedium[[#This Row],[Medium]],Output!$C$6,0),0) -> 1 | F4: =TabWRFrictionF[[#Headers],[DN 08]] -> DN 08 | G4: 2 | I4: =TabWSFrictionF[[#Headers],[DN 06]] -> DN 06 | J4: 2 | L4: =TabCuFrictionF[[#Headers],[8x1]] -> 8x1 | M4: 2 | O4: 0 | Q4: =OFFSET(Translate!B69,0,TabJazyk[[#Totals],[pom]]) -> Trubka Flexira xConnect | R4: =IFERROR(MATCH(TabTyp[[#This Row],[Typ]],Output!$C$4,0),0) -> 1 | S4: =TabTyp[[#This Row],[aktuální]]*1 -> 1 | U4: Česky | V4: 1 | W4: =TabJazyk[[#This Row],[aktuální]]*1 -> 1 | Y4: Pa | Z4: 0 | AA4: =TabJednotka[[#This Row],[aktuální]]*1 -> 0 | AB4: =TabJednotka[[#This Row],[aktuální]]*1 -> 0
B5: =OFFSET(Translate!B41,0,TabJazyk[[#Totals],[pom]]) -> Olej | C5: =2*IFERROR(MATCH(TabMedium[[#This Row],[Medium]],Output!$C$6,0),0) -> 0 | F5: =TabWRFrictionF[[#Headers],[DN 12]] -> DN 12 | G5: 3 | I5: =TabWSFrictionF[[#Headers],[DN 08]] -> DN 08 | J5: 3 | L5: =TabCuFrictionF[[#Headers],[10x1]] -> 10x1 | M5: 3 | O5: 10 | Q5: =OFFSET(Translate!B70,0,TabJazyk[[#Totals],[pom]]) -> Hadice WS | R5: =IFERROR(MATCH(TabTyp[[#This Row],[Typ]],Output!$C$4,0),0) -> 0 | S5: =TabTyp[[#This Row],[aktuální]]*2 -> 0 | U5: English | V5: 0 | W5: =TabJazyk[[#This Row],[aktuální]]*2 -> 0 | Y5: kPa | Z5: 1 | AA5: =TabJednotka[[#This Row],[aktuální]]*1000 -> 1000 | AB5: =TabJednotka[[#This Row],[aktuální]]*2 -> 2
B6: =OFFSET(Translate!B42,0,TabJazyk[[#Totals],[pom]]) -> Vzduch | C6: =3*IFERROR(MATCH(TabMedium[[#This Row],[Medium]],Output!$C$6,0),0) -> 0 | F6: =TabWRFrictionF[[#Headers],[DN 15]] -> DN 15 | G6: 4 | I6: =TabWSFrictionF[[#Headers],[DN 10]] -> DN 10 | J6: 4 | L6: =TabCuFrictionF[[#Headers],[12x1]] -> 12x1 | M6: 4 | O6: 20 | Q6: =OFFSET(Translate!B71,0,TabJazyk[[#Totals],[pom]]) -> Trubka Cu | R6: =IFERROR(MATCH(TabTyp[[#This Row],[Typ]],Output!$C$4,0),0) -> 0 | S6: =TabTyp[[#This Row],[aktuální]]*3 -> 0 | U6: Deutsch | V6: 0 | W6: =TabJazyk[[#This Row],[aktuální]]*3 -> 0 | Y6: MPa | Z6: 0 | AA6: =TabJednotka[[#This Row],[aktuální]]*1000000 -> 0 | AB6: =TabJednotka[[#This Row],[aktuální]]*3 -> 0
B7: =OFFSET(Translate!B43,0,TabJazyk[[#Totals],[pom]]) -> Methan | C7: =4*IFERROR(MATCH(TabMedium[[#This Row],[Medium]],Output!$C$6,0),0) -> 0 | F7: =TabWRFrictionF[[#Headers],[DN 18]] -> DN 18 | G7: 5 | I7: =TabWSFrictionF[[#Headers],[DN 12]] -> DN 12 | J7: 5 | L7: =TabCuFrictionF[[#Headers],[15x1]] -> 15x1 | M7: 5 | O7: 30 | S7: =SUBTOTAL(109,TabTyp[pom]) -> 1 | U7: по-русски | V7: 0 | W7: =TabJazyk[[#This Row],[aktuální]]*4 -> 0 | Y7: Bar | Z7: 0 | AA7: =TabJednotka[[#This Row],[aktuální]]*100000 -> 0 | AB7: =TabJednotka[[#This Row],[aktuální]]*4 -> 0
B8: =OFFSET(Translate!B44,0,TabJazyk[[#Totals],[pom]]) -> Propan | C8: =5*IFERROR(MATCH(TabMedium[[#This Row],[Medium]],Output!$C$6,0),0) -> 0 | F8: =TabWRFrictionF[[#Headers],[DN 20]] -> DN 20 | G8: 6 | I8: =TabWSFrictionF[[#Headers],[DN 15]] -> DN 15 | J8: 6 | L8: =TabCuFrictionF[[#Headers],[18x1]] -> 18x1 | M8: 6 | O8: 40 | W8: =MAX(TabJazyk[pom])-1 -> 0 | AA8: =SUBTOTAL(109,TabJednotka[pom]) -> 1000 | AB8: =SUBTOTAL(109,TabJednotka[Sloupec1]) -> 2
B9: =OFFSET(Translate!B45,0,TabJazyk[[#Totals],[pom]]) -> Butan | C9: =6*IFERROR(MATCH(TabMedium[[#This Row],[Medium]],Output!$C$6,0),0) -> 0 | F9: =TabWRFrictionF[[#Headers],[DN 23]] -> DN 23 | G9: 7 | I9: =TabWSFrictionF[[#Headers],[DN 20]] -> DN 20 | J9: 7 | L9: =TabCuFrictionF[[#Headers],[22x1]] -> 22x1 | M9: 7 | O9: 50
B10: =OFFSET(Translate!B46,0,TabJazyk[[#Totals],[pom]]) -> Propyleneglykol | C10: =7*IFERROR(MATCH(TabMedium[[#This Row],[Medium]],Output!$C$6,0),0) -> 0 | F10: =TabWRFrictionF[[#Headers],[DN 25]] -> DN 25 | G10: 8 | I10: =TabWSFrictionF[[#Headers],[DN 25]] -> DN 25 | J10: 8 | L10: =TabCuFrictionF[[#Headers],[28x1]] -> 28x1 | M10: 8 | O10: 60
C11: =SUBTOTAL(109,TabMedium[aktuální]) -> 1 | F11: =TabWRFrictionF[[#Headers],[DN 32]] -> DN 32 | G11: 9 | I11: =TabWSFrictionF[[#Headers],[DN 32]] -> DN 32 | J11: 9 | L11: =TabCuFrictionF[[#Headers],[35x1,5]] -> 35x1,5 | M11: 9 | O11: 70
F12: =TabWRFrictionF[[#Headers],[DN 40]] -> DN 40 | G12: 10 | I12: =TabWSFrictionF[[#Headers],[DN 40]] -> DN 40 | J12: 10 | L12: =TabCuFrictionF[[#Headers],[42x1,5]] -> 42x1,5 | M12: 10 | O12: 80
F13: =TabWRFrictionF[[#Headers],[DN 50]] -> DN 50 | G13: 11 | I13: =TabWSFrictionF[[#Headers],[DN 50]] -> DN 50 | J13: 11 | L13: =TabCuFrictionF[[#Headers],[54x2]] -> 54x2 | M13: 11 | O13: 90

Sheet Translate (hidden)
B3: Česky | C3: English | D3: Deutsch | E3: по-русски
B4: Médium | C4: Medium | D4: Mediun | E4: Cреда
B5: Cats | C5: Cats | D5: Cats | E5: Cats
B6: Tlak (pouze u plynných médií) [Pa] | C6: Pressure (only for gases) [Pa] * | D6: Druck (nur für Gas) [Pa] * | E6: Давление [Па] *
B7: Teplota [°C] | C7: Temperature [°C] | D7: Temperatur [°C] | E7: Температура [°C]
B8: Vniřní průměr [mm] | C8: Innen diametre [mm] | D8: Innen Durchmesser [mm] | E8: Внутренний диаметр [мм]
B9: Vnější průměr [mm] | C9: Outer diametre [mm] | D9: Aussen Durchmesser [mm] | E9: Внешний диаметр [мм]
B10: Dynamická viskozita [Pa.s] | C10: Dynamic viscosity [Pa.s] | D10: Dynamische viskosität [Pa.s] | E10: Динамическая вязкость [Па*с]
B11: Kinematicka viskosita [m2/s] | C11: Kinematic viscosity [m2/s] | D11: Kinematische viskosität [m2/s] | E11: Кинематическая вязкость [м2/с]
B12: Hustota [kg/m] | C12: Density [kg/m3] | D12: Dichte [kg/m] | E12: Консистенция [кг/м]
B13: Délka Trubky [mm] | C13: Tube length [mm] | D13: Wellrohr Länge [mm] | E13: Длина трубки [мм]
B14: Počet ohybů [-] | C14: Number of bends [-] | D14: Anzahl der Biegungen [-] | E14: Количество изгибов [-]
B15: Ohybový rádius [mm] | C15: Bend radius [mm] | D15: Biegeradius [mm] | E15: Изгибающий радиус [мм]
B16: Úhel ohybu [°] | C16: Bend angle [°] | D16: Biegewinkel [°] | E16: Угол изгиба [°]
B17: Průtok [l/hod] | C17: Flow rate [l/hour] | D17: Durchfluss [l/hod] | E17: Проток [л/час]
B18: Průtok [l/min] | C18: Flow rate [l/min] | D18: Durchfluss [l/min] | E18: Проток [л/мин]
B19: Délka trubky [mm] | C19: Tube length [mm] | D19: Wellrohr Länge [mm] | E19: Длина трубки [мм]
B20: Rychlost [m/s] | C20: Flow velocity [m/s] | D20: Geschwindigkeit [m/s] | E20: Скорость [м/с]
B21: Reynoldsovo č. [-] | C21: Reynolds nr. [-] | D21: Reynolds Nr. [-] | E21: число Рейнольдса [-]
B22: Součinitel tření [-] | C22: Friction factor [-] | D22: Reibungskoeffizient [-] | E22: Коэффициент трения [-]
B23: Požadovaná tlaková ztráta | C23: Required pressure drop | D23: erforderliche Druckverlust | E23: необходимые Потеря давления
B24: Tlaková ztráta [bar] | C24: Pressure drop [bar] | D24: erforderliche Druckverlust [bar] | E24: Потеря давления [бар]
B25: Tlaková ztráta [kPa] | C25: Pressure drop [kPa] | D25: Druckverlust [kPa] | E25: Потеря давления [kПa]
B26: Tlaková ztráta rovné trubky | C26: Pressure drop of the straight tube | D26: Druckverlust - gerades Rohr | E26: Потеря давления прямой трубки
B27: Výhřevnost | C27: Low heat value | D27: Heizwert | E27: Теплотворность
B28: Spalné teplo | C28: Heat of combustion | D28: Verbrennungswärme | E28: Теплотворная способность
B29: Součinitel odporu [-] | C29: Resistance factor [-] | D29: Wiederstandskoef. [-] | E29: Коэффициент сопротивления [-]
B30: Tlaková ztráta ohnuté trubky | C30: Pressure drop of the bended tube | D30: Druckverlust gebogenes Rohr | E30: Потеря давления отогнутой трубки
B31: Plocha a objem trubek Cats | C31: Surface and volume of the tubes | D31: Fläche und Volumen der Cats Wellrohren | E31: Плоскость и объем трубок Cats
B32: Rozměr potrubí | C32: Pipe dimension | D32: Rohrdimension | E32: Размер трубы
B33: Rozteč vln | C33: Pitch | D33: Wellenabstand | E33: Расстояние звенов
B34: Tloušťka stěny | C34: Wall thickness | D34: Wanddicke | E34: Толщина стены
B35: Hmotnost | C35: Weight | D35: Gewicht | E35: Вес
B36: Délka rovné trubky pro výrobu 1m Cats | C36: Length of the straight pipe for 1m Cats | D36: Gestreckte Länge für Fertigung 1m Cats Wellrohres | E36: Длина прямой трубки для производства 1м Cats
B37: Plocha | C37: Surface | D37: Fläche | E37: Плоскость
B38: Plocha celé trubky | C38: Surface | D38: Fläche | E38: Плоскость
B39: Objem celé trubky | C39: Volume | D39: Volumen | E39: Объем
B40: Voda | C40: Water | D40: Wasser | E40: Вода
B41: Olej | C41: Oil | D41: Oil | E41: масло
B42: Vzduch | C42: Air | D42: Luft | E42: Воздух
B43: Methan | C43: Metane | D43: Methan | E43: Метан
B44: Propan | C44: Propane | D44: Propan | E44: Пропан
B45: Butan | C45: Butane | D45: Butan | E45: Бутан
B46: Propyleneglykol | C46: Propylene-glycol | D46: Propyleneglykol | E46: пропиленгликоль
B47: Součinitel tření [-] | C47: Friction factor | D47: Reibungskoeffizient [-] | E47: Коэффициент трения [-]
B48: Součinitel odporu ohnuté trubky [-] | C48: Resistance factor of bended pipe | D48: Wiederstandskoeffizient von gebogenem Rohr [-] | E48: Коэффициент сопротивления отогнутой трубки [-]
B49: Reynoldsovo.č. | C49: Reynolds nr. | D49: Reynolds.Nr. | E49: число Рейнольдса [-]
B50: Fyzikální charakteristika - Voda | C50: Physical characteristic - Water | D50: Physikalische Charakteristik - Wasser | E50: Физическая характеристика - Вода
B51: Teplota | C51: Temperature | D51: Temperatur | E51: Температура
B52: Hustota | C52: Density | D52: Dichte | E52: Консистенция
B53: Kinematická viskosita | C53: Kinematic viscosity | D53: Kinematische viskosität | E53: Кинематическая вязкость
B54: Dynamická viskozita | C54: Dynamic viscosity | D54: Dynamische viskosität | E54: Динамическая вязкость [Па*с]
B55: Fyzikální charakteristika (Tlak 100000 Pa) - Suchý vzduch | C55: Physical characteristic (Pressure 100000 Pa) - Dry Air | D55: Physikalische Charakteristik (Druck 100000 Pa) - trockene Luft | E55: Физическая характеристика (Давление 100000 Па) -Сухий воздух
B56: Hustota při P | C56: Density at P | D56: Dichte bei P | E56: Консистенция при П
B57: Hustota při P1 | C57: Density at P1 | D57: Dichte bei P1 | E57: Консистенция при П1
B58: Tlak P1 [Pa] | C58: Pressure P1[Pa] | D58: Druck P1 [Pa] | E58: Давление П1 [Па]
B59: Fyzikální charakteristika (Tlak 100000 Pa) - Metan-plynný | C59: Physical characteristic (Pressure P0 100000 Pa) - Methan-gaseous | D59: Physikalische Charakteristik (Druck 100000 Pa) - Methangas-gasartig | E59: Физическая характеристика (Давление 100000 Па) -Метан-газообразный
B60: Fyzikální charakteristika (Tlak 100000 Pa) - Propan-plynný | C60: Physical characteristic (Pressure P0 100000 Pa) - Propane-gaseous | D60: Physikalische Charakteristik (Druck 100000 Pa) - Propangas-gasartig | E60: Физическая характеристика (Давление 100000 Па) -Пропан-газообразный
B61: Fyzikální charakteristika (Tlak 100000 Pa) - Butan-plynný | C61: Physical characteristic (Pressure P0 100000 Pa) - Butane-gaseous | D61: Physikalische Charakteristik (Druck 100000 Pa) - Buthangas-gasartig | E61: Физическая характеристика (Давление 100000 Па) -Бутан-газообразный
B62: Fyzikální charakteristika - Solaren-EKO | C62: Physical characteristic - Solaren EKO | D62: Physikalische Charakteristik- Solaren-EKO | E62: Физическая характеристика (Давление 100000 Па) - Соларен-Эко
B63: Fyzikální charakteristika (Tlak 100000 Pa) - LPG-plynný | C63: Physical characteristic (Pressure P0 100000 Pa) - LPG-gaseous | D63: Physikalische Charakteristik (Druck 100000 Pa) - LPG-gasartig | E63: Физическая характеристика (Давление 100000 Па) -LPG-газообразный
B64: Výkon odečti v řádku s požadovanou tlakovou ztrátou (obvykle je požadována ztráta 100 až 250Pa). Výkon počítaný pomocí výhřevnosti je u spotřebičů bez kondezace par | C64: Read output of heat in the row with required value of pressure drop (usually between 100 and 250Pa). Output of heat calculated with heating value is used for appliances without condesnation of vapours | D64: Die Leistung ist auf der Zeile zusammen verlangten Druckverlust abzulesen (gewöhnlich liegt der Druckverlust zwischen 100Pa und 250Pa). Leistung, welchen mit Hilfe der Heizkraft berechnet wird gilt für Verbrauchsgeräte ohne Wasserdampf-Kondensation. | E64: Мощность необходимо отчислить в строчке с требуемой величиной Потеря давления (обычно требуемая потеря от 100 до 250 Па). Мощность, определенная с помощью теплотворности у приборов является без конденсации пар
B65: Plocha a objem trubek WS hadic | C65: Surface and volume of the WS hoses | D65: Fläche und Volumen Plocha a objem trubek WS hadic
B66: Délka rovné trubky pro výrobu 1m WS | C66: Length of the straight pipe for 1m WS | D66: Gestreckte Länge von 1m Wellschlauch
B67: Plocha a objem trubek Cu trubek | C67: Surface and volume of the Cu pipes | D67: Fläche und Volumen von Kupfer Rohr
B68: Fyzikální charakteristika - Propyleneglykol 40% | C68: Physical characteristic - Prophyleneglykol 40% | D68: Physikalische Charakteristik- Propyleneglykol 40%
B69: Trubka Flexira xConnect | C69: Pipe Flexira xConnect | D69: Wellrohr Flexira xConnect | E69: Трубка Flexira xConnect
B70: Hadice WS | C70: WS hose | D70: WS Schlauche | E70: шланг WS
B71: Trubka Cu | C71: Cu pipe | D71: Cu Rohr | E71: Трубка медь
B72: Zadej tlakovou ztrátu pro, kterou chceš vypočítat průtok | C72: Fill pressure drop for which you want to calculate flow rate | D72: Fill pressure drop for which you want to calculate flow rate | E72: Fill pressure drop for which you want to calculate flow rate
B73: Typ potrubí | C73: Pipe type | D73: Rohr | E73: тип трубы
B74: Vypočítaný průtok | C74: Calculated flowrate | D74: Berechneten Strömungs | E74: Расчетный Проток
B75: maximální výkon spotřebiče | C75: maximum heating output | D75: maximale Leistung | E75: maximum heating output
B76: maximální výkon - kondenzační kotel | C76: maximum output- condensing boiler | D76: maximale Leistung - Brennwertkessel | E76: maximum output in condensing mode
B77: Poznámka: Vyplňujte pouze zelené buňky. Všechny ostatní hodnoty jsou načítány automaticky. Výsledné hodnoty jsou orientační a nemusí přesně odpovídat skutečnosti. Musíte mít povolená makra, aby výpočet fungoval. Použití výsledků je plně v odpovědnosti uživatele. Práva na změnu vyhrazena. © Tomáš Holeček | C77: Note: Please fill only green cells (in some cells are drop lists). All others values are calculatec automaticaly. Results are orientational and needn't correspond with the reality. You must allow macros if you want to use this file. All datas are used on your own risk. All rigths reserved. © Tomáš Holeček | D77: Bemerkung: bitte nur die grünen Felder auszufüllen. Alle anderen Werte werden automatisch berechnet. Die Ergebnisswerte sind theoretisch und müssen nicht genau einem Labortest entsprechen. Der Autor von dieser Datei übernimmt keine Verantwortung für den Einsatzt von diesen Daten. © Tomáš Holeček | E77: Note: Please fill only green cells (in some cells are drop lists). All others values are calculatec automaticaly. Results are orientational and needn't correspond with the reality. You must allow macros if you want to use this file. All datas are used on your own risk. All rigths reserved. © Tomáš Holeček

Sheet Dimensions
C3: [mm] | D3: [mm] | E3: [mm] | F3: [mm] | G3: [kg/m] | H3: [m] | I3: [m²/m] | J3: [mm²/m] | K3: [l/m] | L3: [l]
B4: Dimension | C4: ØOD | D4: ØID | E4: Rozteč vln | F4: Tloušťka stěny | G4: Hmotnost | H4: Délka rovné trubky pro výrobu 1m WR | I4: Plocha | J4: Plocha2 | K4: Objem | L4: objem celé délky
B5: DN 08 | C5: 11.7 | D5: 8.1 | E5: 4.2 | F5: 0.26 | G5: 0.1 | H5: 1.43 | I5: 0.05022589839 | J5: 50225.89839 | K5: 0.0678 | L5: =TabDimWR[[#This Row],[Objem]]*Output!$C$8/1000 -> 0.0678
B6: DN 12 | C6: 15.8 | D6: 12 | E6: 5 | F6: 0.3 | G6: 0.14 | H6: 1.27 | I6: 0.06064530458 | J6: 60645.30458 | K6: 0.137 | L6: =TabDimWR[[#This Row],[Objem]]*Output!$C$8/1000 -> 0.137
B7: DN 15 | C7: 20 | D7: 15.7 | E7: 5.5 | F7: 0.3 | G7: 0.18 | H7: 1.3 | I7: 0.07923096672 | J7: 79230.96672 | K7: 0.235 | L7: =TabDimWR[[#This Row],[Objem]]*Output!$C$8/1000 -> 0.235
B8: DN 18 | C8: 21.6 | D8: 17.9 | E8: 5 | F8: 0.26 | G8: 0.17 | H8: 1.28 | I8: 0.08476770962 | J8: 84767.70962 | K8: 0.2717 | L8: =TabDimWR[[#This Row],[Objem]]*Output!$C$8/1000 -> 0.2717
B9: DN 20 | C9: 25 | D9: 19.7 | E9: 6.4 | F9: 0.3 | G9: 0.23 | H9: 1.36 | I9: 0.1042506106 | J9: 104250.6106 | K9: 0.366 | L9: =TabDimWR[[#This Row],[Objem]]*Output!$C$8/1000 -> 0.366
B10: DN 23 | C10: 28.1 | D10: 23 | E10: 6.5 | F10: 0.3 | G10: 0.25 | H10: 1.29 | I10: 0.1114479994 | J10: 111447.9994 | K10: 0.477 | L10: =TabDimWR[[#This Row],[Objem]]*Output!$C$8/1000 -> 0.477
B11: DN 25 | C11: 33 | D11: 26.5 | E11: 7.1 | F11: 0.3 | G11: 0.32 | H11: 1.41 | I11: 0.1435 | J11: 143500 | K11: 0.655 | L11: =TabDimWR[[#This Row],[Objem]]*Output!$C$8/1000 -> 0.655
B12: DN 32 | C12: 41 | D12: 33 | E12: 7.6 | F12: 0.35 | G12: 0.48 | H12: 1.5 | I12: 0.1899092759 | J12: 189909.2759 | K12: 1.005 | L12: =TabDimWR[[#This Row],[Objem]]*Output!$C$8/1000 -> 1.005
B13: DN 40 | C13: 47.7 | D13: 40 | E13: 8.8 | F13: 0.35 | G13: 0.57 | H13: 1.4 | I13: 0.2067167966 | J13: 206716.7966 | K13: 1.422 | L13: =TabDimWR[[#This Row],[Objem]]*Output!$C$8/1000 -> 1.422
B14: DN 50 | C14: 61 | D14: 51 | E14: 9.4 | F14: 0.4 | G14: 0.84 | H14: 1.53 | I14: 0.289359533 | J14: 289359.533 | K14: 2.339 | L14: =TabDimWR[[#This Row],[Objem]]*Output!$C$8/1000 -> 2.339
C21: [mm] | D21: [mm] | E21: [mm] | F21: [mm] | G21: [kg/m] | H21: [m] | I21: [m²/m] | J21: [mm²/m] | K21: [l/m] | L21: [l]
B22: Dimension | C22: ØOD | D22: ØID | E22: Rozteč vln | F22: Tloušťka stěny | G22: Hmotnost | H22: Délka rovné trubky pro výrobu 1m WR | I22: Plocha | J22: Plocha2 | K22: Objem | L22: objem celé délky
B23: DN 06 | C23: 9.6 | D23: 6.3 | E23: 2 | F23: 0.15 | G23: 0.0635 | H23: 2.156292777 | I23: 0.063 | J23: 63000 | K23: 0.0439 | L23: =TabDimWS[[#This Row],[Objem]]*Output!$C$8/1000 -> 0.0439
B24: DN 08 | C24: 12.2 | D24: 8.2 | E24: 2.2 | F24: 0.15 | G24: 0.084 | H24: 1.979406015 | I24: 0.074 | J24: 74000 | K24: 0.0736 | L24: =TabDimWS[[#This Row],[Objem]]*Output!$C$8/1000 -> 0.0736
B25: DN 10 | C25: 14.2 | D25: 10.3 | E25: 2.6 | F25: 0.15 | G25: 0.0902 | H25: 1.992299288 | I25: 0.087 | J25: 87000 | K25: 0.1075 | L25: =TabDimWS[[#This Row],[Objem]]*Output!$C$8/1000 -> 0.1075
B26: DN 12 | C26: 16.7 | D26: 12.1 | E26: 3.1 | F26: 0.15 | G26: 0.1042 | H26: 1.921504801 | I26: 0.099 | J26: 99000 | K26: 0.15 | L26: =TabDimWS[[#This Row],[Objem]]*Output!$C$8/1000 -> 0.15
B27: DN 15 | C27: 21.6 | D27: 16.2 | E27: 3.6 | F27: 0.18 | G27: 0.1589 | H27: 1.873292645 | I27: 0.125 | J27: 125000 | K27: 0.2607 | L27: =TabDimWS[[#This Row],[Objem]]*Output!$C$8/1000 -> 0.2607
B28: DN 20 | C28: 26.8 | D28: 20.3 | E28: 3.7 | F28: 0.18 | G28: 0.2442 | H28: 2.154972376 | I28: 0.179 | J28: 179000 | K28: 0.4104 | L28: =TabDimWS[[#This Row],[Objem]]*Output!$C$8/1000 -> 0.4104
B29: DN 25 | C29: 32.3 | D29: 25.3 | E29: 3.7 | F29: 0.2 | G29: 0.3395 | H29: 2.145348763 | I29: 0.215 | J29: 215000 | K29: 0.6184 | L29: =TabDimWS[[#This Row],[Objem]]*Output!$C$8/1000 -> 0.6184
B30: DN 32 | C30: 41.1 | D30: 34.2 | E30: 3.6 | F30: 0.22 | G30: 0.465 | H30: 1.933658187 | I30: 0.247 | J30: 247000 | K30: 1.0682 | L30: =TabDimWS[[#This Row],[Objem]]*Output!$C$8/1000 -> 1.0682
B31: DN 40 | C31: 49.6 | D31: 40.2 | E31: 5 | F31: 0.25 | G31: 0.6807 | H31: 2.333840306 | I31: 0.36 | J31: 360000 | K31: 1.5191 | L31: =TabDimWS[[#This Row],[Objem]]*Output!$C$8/1000 -> 1.5191
B32: DN 50 | C32: 60.4 | D32: 50.3 | E32: 5 | F32: 0.25 | G32: 0.85 | H32: 2.423193791 | I32: 0.456 | J32: 456000 | K32: 2.3243 | L32: =TabDimWS[[#This Row],[Objem]]*Output!$C$8/1000 -> 2.3243
C39: [mm] | D39: [mm] | E39: [mm] | F39: [mm] | G39: [kg/m] | H39: [m] | I39: [m²/m] | J39: [mm²/m] | K39: [l/m] | L39: [l]
B40: Dimension | C40: ØOD | D40: ØID | E40: Sloupec1 | F40: Tloušťka stěny | G40: Hmotnost | H40: Sloupec2 | I40: Plocha | J40: Plocha2 | K40: Objem | L40: objem celé délky
B41: 8x1 | C41: 8 | D41: 6 | F41: 1 | G41: 0.2 | I41: 0.02513274123 | J41: 25132.74123 | K41: 0.02827433388 | L41: =TabDimCu[[#This Row],[Objem]]*Output!$C$8/1000 -> 0.02827433388
B42: 10x1 | C42: 10 | D42: 8 | F42: 1 | G42: 0.25 | I42: 0.03141592654 | J42: 31415.92654 | K42: 0.05026548246 | L42: =TabDimCu[[#This Row],[Objem]]*Output!$C$8/1000 -> 0.05026548246
B43: 12x1 | C43: 12 | D43: 10 | F43: 1 | G43: 0.31 | I43: 0.03769911184 | J43: 37699.11184 | K43: 0.07853981634 | L43: =TabDimCu[[#This Row],[Objem]]*Output!$C$8/1000 -> 0.07853981634
B44: 15x1 | C44: 15 | D44: 13 | F44: 1 | G44: 0.39 | I44: 0.0471238898 | J44: 47123.8898 | K44: 0.1327322896 | L44: =TabDimCu[[#This Row],[Objem]]*Output!$C$8/1000 -> 0.1327322896
B45: 18x1 | C45: 18 | D45: 16 | F45: 1 | G45: 0.48 | I45: 0.05654866776 | J45: 56548.66776 | K45: 0.2010619298 | L45: =TabDimCu[[#This Row],[Objem]]*Output!$C$8/1000 -> 0.2010619298
B46: 22x1 | C46: 22 | D46: 20 | F46: 1 | G46: 0.587 | I46: 0.06911503838 | J46: 69115.03838 | K46: 0.3141592654 | L46: =TabDimCu[[#This Row],[Objem]]*Output!$C$8/1000 -> 0.3141592654
B47: 28x1 | C47: 28 | D47: 26 | F47: 1 | G47: 0.76 | I47: 0.0879645943 | J47: 87964.5943 | K47: 0.5309291585 | L47: =TabDimCu[[#This Row],[Objem]]*Output!$C$8/1000 -> 0.5309291585
B48: 35x1,5 | C48: 35 | D48: 32 | F48: 1.5 | G48: 1.41 | I48: 0.1099557429 | J48: 109955.7429 | K48: 0.8042477193 | L48: =TabDimCu[[#This Row],[Objem]]*Output!$C$8/1000 -> 0.8042477193
B49: 42x1,5 | C49: 42 | D49: 39 | F49: 1.5 | G49: 1.71 | I49: 0.1319468915 | J49: 131946.8915 | K49: 1.194590607 | L49: =TabDimCu[[#This Row],[Objem]]*Output!$C$8/1000 -> 1.194590607
B50: 54x2 | C50: 54 | D50: 50 | F50: 2 | G50: 2.92 | I50: 0.1696460033 | J50: 169646.0033 | K50: 1.963495408 | L50: =TabDimCu[[#This Row],[Objem]]*Output!$C$8/1000 -> 1.963495408

Sheet Water (hidden)
A1: [°C] | B1: [kg•m-3] | C1: [m2•s-1] | D1: [Pa•s] | E1: [W•m-1•K-1] | F1: [J•kg-1•K-1]
A2: Teplota | B2: Hustota | C2: Kinematická viskosita | D2: Dynamická viskozita | E2: Tepelná vodivost λ | F2: Tepelná kapacita c | G2: Součinitel teplotní rozt
A3: 0 | B3: 999.941 | C3: =$D3/$B3 -> 1.787105439e-06 | D3: =1.787/1000 -> 0.001787 | E3: 0.564 | F3: 3397.4 | G3: 0.000182
A4: 10 | B4: 999.701 | C4: 1.30739091e-06 | D4: =1.307/1000 -> 0.001307 | E4: 0.584 | F4: 4176 | G4: 0.000195
A5: 20 | B5: 998.205 | C5: 1.003801824e-06 | D5: =1.002/1000 -> 0.001002 | E5: 0.597 | F5: 4178 | G5: 0.00021
A6: 30 | B6: 995.651 | C6: 8.014856611e-07 | D6: =0.798/1000 -> 0.000798 | E6: 0.618 | F6: 4179 | G6: =((45+9.16*TabWater[[#This Row],[Teplota]]-0.019*TabWater[[#This Row],[Teplota]]^2))*0.000001 -> 0.0003027
A7: 40 | B7: 992.22 | C7: 6.58120175e-07 | D7: =0.653/1000 -> 0.000653 | E7: 0.631 | F7: 4179 | G7: =((45+9.16*TabWater[[#This Row],[Teplota]]-0.019*TabWater[[#This Row],[Teplota]]^2))*0.000001 -> 0.000381
A8: 50 | B8: 988.04 | C8: 5.536213109e-07 | D8: =0.547/1000 -> 0.000547 | E8: 0.645 | F8: 4182 | G8: =((45+9.16*TabWater[[#This Row],[Teplota]]-0.019*TabWater[[#This Row],[Teplota]]^2))*0.000001 -> 0.0004555
A9: 60 | B9: 983.2 | C9: 4.749796583e-07 | D9: =0.467/1000 -> 0.000467 | E9: 0.6533333333 | F9: 4185 | G9: =((45+9.16*TabWater[[#This Row],[Teplota]]-0.019*TabWater[[#This Row],[Teplota]]^2))*0.000001 -> 0.0005262
A10: 70 | B10: 977.76 | C10: 4.131893307e-07 | D10: =0.404/1000 -> 0.000404 | E10: 0.6616666667 | F10: 4191 | G10: =((45+9.16*TabWater[[#This Row],[Teplota]]-0.019*TabWater[[#This Row],[Teplota]]^2))*0.000001 -> 0.0005931
A11: 80 | B11: 971.79 | C11: 3.653052614e-07 | D11: =0.355/1000 -> 0.000355 | E11: 0.67 | F11: 4198 | G11: =((45+9.16*TabWater[[#This Row],[Teplota]]-0.019*TabWater[[#This Row],[Teplota]]^2))*0.000001 -> 0.0006562
A12: 90 | B12: 965.3 | C12: 3.263234228e-07 | D12: =0.315/1000 -> 0.000315 | E12: 0.676 | F12: 4208 | G12: =((45+9.16*TabWater[[#This Row],[Teplota]]-0.019*TabWater[[#This Row],[Teplota]]^2))*0.000001 -> 0.0007155
A17: Výpočet pro | B17: A
A18: teplota media | B18: =Tep1_in -> 20
A19: kinematická viskozita | B19: =B20/B21 -> 1.019317583e-06
A20: dynamická viskozita | B20: =( -0.00000000005*B18^5 + 0.00000003*B18^4 - 0.000007*B18^3 + 0.0008*B18^2 - 0.0504*B18 + 1.7568)/1000 -> 0.00101744
A21: hustota | B21: =0.00002*B18^3 - 0.0061*B18^2 + 0.0219*B18 + 1000 -> 998.158
A22: Tepelná vodivost λ | B22: =0.0012*B18+0.574 -> 0.598
A23: Tepelná kapacita cp | B23: =IFERROR(INDEX(TabWater[],MATCH(ROUND(B18,-1),TabWater[Teplota],),6),F12) -> 4178
A24: Součinitel teplotní roztažnosti | B24: =IFERROR(INDEX(TabWater[],MATCH(ROUND(B18,-1),TabWater[Teplota],),7),G12) -> 0.00021
A50: voda

Sheet Oil (hidden)
A1: [°C] | B1: [kg•m-3] | C1: [m2•s-1] | D1: [Pa•s] | E1: [W•m-1•K-1] | F1: [J•kg-1•K-1]
A2: Teplota | B2: Hustota | C2: Kinematická viskosita | D2: Dynamická viskozita | E2: Tepelná vodivost λ | F2: Tepelná kapacita c | G2: Součinitel teplotní rozt
A3: 0 | B3: 852 | C3: =0.0000072 -> 7.2e-06 | D3: =TabOil[[#This Row],[Kinematická viskosita]]*TabOil[[#This Row],[Hustota]] -> 0.0061344 | E3: 0.498 | F3: 1842 | G3: 8e-05
A4: 10 | B4: 850 | C4: =0.0000055 -> 5.5e-06 | D4: =TabOil[[#This Row],[Kinematická viskosita]]*TabOil[[#This Row],[Hustota]] -> 0.004675 | E4: 0.496 | F4: 1885 | G4: 8e-05
A5: 20 | B5: 848 | C5: 4e-06 | D5: =TabOil[[#This Row],[Kinematická viskosita]]*TabOil[[#This Row],[Hustota]] -> 0.003392 | E5: 0.494 | F5: 1926 | G5: 8e-05
A6: 30 | B6: 845 | C6: 3.04e-06 | D6: =TabOil[[#This Row],[Kinematická viskosita]]*TabOil[[#This Row],[Hustota]] -> 0.0025688 | E6: 0.492 | F6: 1970 | G6: 8e-05
A7: 40 | B7: 841 | C7: 2.5e-06 | D7: =TabOil[[#This Row],[Kinematická viskosita]]*TabOil[[#This Row],[Hustota]] -> 0.0021025 | E7: 0.488 | F7: 2010 | G7: 8e-05
A8: 50 | B8: 835 | C8: 1.9e-06 | D8: =TabOil[[#This Row],[Kinematická viskosita]]*TabOil[[#This Row],[Hustota]] -> 0.0015865 | E8: 0.485 | F8: 2051 | G8: 8e-05
A9: 60 | B9: 828 | C9: 1.4e-06 | D9: =TabOil[[#This Row],[Kinematická viskosita]]*TabOil[[#This Row],[Hustota]] -> 0.0011592 | E9: 0.482 | F9: 2090 | G9: 8e-05
A10: 70 | B10: 820 | C10: 1e-06 | D10: =TabOil[[#This Row],[Kinematická viskosita]]*TabOil[[#This Row],[Hustota]] -> 0.00082 | E10: 0.477 | F10: 2135 | G10: 8e-05
A11: 80 | B11: 810 | C11: 7.5e-07 | D11: =TabOil[[#This Row],[Kinematická viskosita]]*TabOil[[#This Row],[Hustota]] -> 0.0006075 | E11: 0.4725 | F11: 2180 | G11: 8e-05
A12: 90 | B12: 800 | C12: 5.7e-07 | D12: =TabOil[[#This Row],[Kinematická viskosita]]*TabOil[[#This Row],[Hustota]] -> 0.000456 | E12: 0.47 | F12: 2225 | G12: 8e-05
A17: Výpočet pro | B17: A
A18: teplota media | B18: =ROUND(Tep1_in,-1) -> 20
A19: kinematická viskozita | B19: =B20/B21 -> 4e-06
A20: dynamická viskozita | B20: =INDEX(TabOil[Dynamická viskozita],MATCH(B18,TabOil[Teplota],0),1) -> 0.003392
A21: hustota | B21: =INDEX(TabOil[Hustota],MATCH(B18,TabOil[Teplota],0),1) -> 848
A22: Tepelná vodivost λ | B22: =INDEX(TabOil[Tepelná vodivost λ],MATCH(B18,TabOil[Teplota],0),1) -> 0.494
A23: Tepelná kapacita cp | B23: =IFERROR(INDEX(TabOil[],MATCH(ROUND(B18,-1),TabOil[Teplota],),6),F12) -> 1926
A24: Součinitel teplotní roztažnosti | B24: =IFERROR(INDEX(TabOil[],MATCH(ROUND(B18,-1),TabOil[Teplota],),7),G12) -> 8e-05
A50: olej

Sheet Propyleneglycol (hidden)
A1: [°C] | B1: [kg•m-3] | C1: [m2•s-1] | D1: [Pa•s] | E1: [W•m-1•K-1] | F1: [J•kg-1•K-1]
A2: Teplota | B2: Hustota | C2: Kinematická viskosita | D2: Dynamická viskozita | E2: Tepelná vodivost λ | F2: Tepelná kapacita c | G2: Součinitel teplotní rozt
A3: 0 | B3: =ROUND(+$B$15+$C$15*A3+$D$15*A3*A3,1) -> 1057.4 | C3: =10^($B$14+$C$14*A3+$D$14*A3*A3)*0.000001 -> 1.98739563e-05 | D3: =TabMPG[[#This Row],[Hustota]]*TabMPG[[#This Row],[Kinematická viskosita]] -> 0.0210147214 | E3: 0.32 | F3: 3397.4 | G3: 0.000182
A4: 10 | B4: 1051.8 | C4: 1.167926479e-05 | D4: =TabMPG[[#This Row],[Hustota]]*TabMPG[[#This Row],[Kinematická viskosita]] -> 0.0122842507 | E4: 0.3392 | F4: 3438.293 | G4: 0.000195
A5: 20 | B5: 1046 | C5: 7.199245677e-06 | D5: =TabMPG[[#This Row],[Hustota]]*TabMPG[[#This Row],[Kinematická viskosita]] -> 0.007530410979 | E5: 0.35805 | F5: 3479.186 | G5: 0.00021
A6: 30 | B6: 1039.9 | C6: 4.654776141e-06 | D6: =TabMPG[[#This Row],[Hustota]]*TabMPG[[#This Row],[Kinematická viskosita]] -> 0.004840501709 | E6: 0.3769 | F6: 3520.079 | G6: =((45+9.16*TabWater[[#This Row],[Teplota]]-0.019*TabWater[[#This Row],[Teplota]]^2))*0.000001 -> 0.0003027
A7: 40 | B7: 1033.5 | C7: 3.156828004e-06 | D7: =TabMPG[[#This Row],[Hustota]]*TabMPG[[#This Row],[Kinematická viskosita]] -> 0.003262581742 | E7: 0.39575 | F7: 3560.972 | G7: =((45+9.16*TabWater[[#This Row],[Teplota]]-0.019*TabWater[[#This Row],[Teplota]]^2))*0.000001 -> 0.000381
A8: 50 | B8: 1026.9 | C8: 2.245656659e-06 | D8: =TabMPG[[#This Row],[Hustota]]*TabMPG[[#This Row],[Kinematická viskosita]] -> 0.002306064823 | E8: 0.4146 | F8: 3601.865 | G8: =((45+9.16*TabWater[[#This Row],[Teplota]]-0.019*TabWater[[#This Row],[Teplota]]^2))*0.000001 -> 0.0004555
A9: 60 | B9: 1020 | C9: 1.675622215e-06 | D9: =TabMPG[[#This Row],[Hustota]]*TabMPG[[#This Row],[Kinematická viskosita]] -> 0.001709134659 | E9: 0.43345 | F9: 3642.758 | G9: =((45+9.16*TabWater[[#This Row],[Teplota]]-0.019*TabWater[[#This Row],[Teplota]]^2))*0.000001 -> 0.0005262
A10: 70 | B10: 1012.8 | C10: 1.311442269e-06 | D10: =TabMPG[[#This Row],[Hustota]]*TabMPG[[#This Row],[Kinematická viskosita]] -> 0.00132822873 | E10: 0.4523 | F10: 3683.651 | G10: =((45+9.16*TabWater[[#This Row],[Teplota]]-0.019*TabWater[[#This Row],[Teplota]]^2))*0.000001 -> 0.0005931
A11: 80 | B11: 1005.4 | C11: 1.076620291e-06 | D11: =TabMPG[[#This Row],[Hustota]]*TabMPG[[#This Row],[Kinematická viskosita]] -> 0.001082434041 | E11: 0.47115 | F11: 3724.544 | G11: =((45+9.16*TabWater[[#This Row],[Teplota]]-0.019*TabWater[[#This Row],[Teplota]]^2))*0.000001 -> 0.0006562
A12: 90 | B12: 997.8 | C12: 9.270779674e-07 | D12: =TabMPG[[#This Row],[Hustota]]*TabMPG[[#This Row],[Kinematická viskosita]] -> 0.0009250383959 | E12: 0.49 | F12: 3765.437 | G12: =((45+9.16*TabWater[[#This Row],[Teplota]]-0.019*TabWater[[#This Row],[Teplota]]^2))*0.000001 -> 0.0007155
A14: const-kin.vis. | B14: 1.298284331 | C14: -0.02412389838 | D14: 0.0001037015782
A15: const-density | B15: 1057.428571 | C15: -0.5452380952 | D15: -0.00130952381
A17: Výpočet pro | B17: A
A18: teplota media | B18: =Tep1_in -> 20
A19: kinematická viskozita | B19: =10^($B$14+$C$14*B18+$D$14*B18*B18)*10^-6 -> 7.199245677e-06
A20: dynamická viskozita | B20: =B21*B19 -> 0.007530410979
A21: hustota | B21: =+$B$15+$C$15*B18+$D$15*B18*B18 -> 1046
A22: Tepelná vodivost λ | B22: =0.0019*B18+0.3202 -> 0.3582
A23: Tepelná kapacita cp | B23: =4.0893*B18+3397.4 -> 3479.186
A24: Součinitel teplotní roztažnosti | B24: =IFERROR(INDEX(TabWater[],MATCH(ROUND(B18,-1),TabWater[Teplota],),7),G12) -> 0.00021
A50: propylenglykol

Sheet Air-Dry (hidden)
A1: [°C] | B1: [kg•m-3] | C1: [kg•m-3] | D1: [m2•s-1] | E1: [Pa•s] | F1: [W•m-1•K-1] | G1: [J•kg-1•K-1] | H1: [-]
A2: Teplota | B2: Hustota P0 | C2: Hustota P1 | D2: Kinematická viskosita | E2: Dynamická viskozita | F2: Tepelná vodivost λ | G2: Tepelná kapacita c | H2: Pr | J2: Tlak P1 [Pa] | K2: =Tlak*1000+100000 -> 102000 | L2: Pa
A3: 0 | B3: 1.275 | C3: =$B3*($K$2/100000) -> 1.3005 | D3: =TabAir[[#This Row],[Dynamická viskozita]]/TabAir[[#This Row],[Hustota P1]] -> 1.315647828e-05 | E3: =(0.000000002*A3^3-0.000004*A3^2+0.0049*A3+1.711)/100000 -> 1.711e-05 | F3: 0.0237 | G3: 1005 | H3: =TabAir[[#This Row],[Tepelná kapacita c]]*TabAir[[#This Row],[Dynamická viskozita]]/TabAir[[#This Row],[Tepelná vodivost λ]] -> 0.7255506329
A4: 10 | B4: 1.23 | C4: 1.2546 | D4: =TabAir[[#This Row],[Dynamická viskozita]]/TabAir[[#This Row],[Hustota P1]] -> 1.402520325e-05 | E4: 1.759602e-05 | F4: 0.0245 | G4: 1005 | H4: =TabAir[[#This Row],[Tepelná kapacita c]]*TabAir[[#This Row],[Dynamická viskozita]]/TabAir[[#This Row],[Tepelná vodivost λ]] -> 0.7217959224
A5: 20 | B5: 1.188 | C5: 1.21176 | D5: =TabAir[[#This Row],[Dynamická viskozita]]/TabAir[[#This Row],[Hustota P1]] -> 1.491562686e-05 | E5: 1.807416e-05 | F5: 0.0252 | G5: 1010 | H5: =TabAir[[#This Row],[Tepelná kapacita c]]*TabAir[[#This Row],[Dynamická viskozita]]/TabAir[[#This Row],[Tepelná vodivost λ]] -> 0.7244008571
A6: 30 | B6: 1.1466 | C6: 1.169532 | D6: =TabAir[[#This Row],[Dynamická viskozita]]/TabAir[[#This Row],[Hustota P1]] -> 1.585637674e-05 | E6: 1.854454e-05 | F6: 0.02595 | G6: 1011.5 | H6: =TabAir[[#This Row],[Tepelná kapacita c]]*TabAir[[#This Row],[Dynamická viskozita]]/TabAir[[#This Row],[Tepelná vodivost λ]] -> 0.7228440158
A7: 40 | B7: 1.112 | C7: 1.13424 | D7: =TabAir[[#This Row],[Dynamická viskozita]]/TabAir[[#This Row],[Hustota P1]] -> 1.675772323e-05 | E7: 1.900728e-05 | F7: 0.0265 | G7: 1013 | H7: =TabAir[[#This Row],[Tepelná kapacita c]]*TabAir[[#This Row],[Dynamická viskozita]]/TabAir[[#This Row],[Tepelná vodivost λ]] -> 0.7265801751
A8: 50 | B8: 1.08 | C8: 1.1016 | D8: =TabAir[[#This Row],[Dynamická viskozita]]/TabAir[[#This Row],[Hustota P1]] -> 1.766748366e-05 | E8: 1.94625e-05 | F8: 0.02725 | G8: 1015 | H8: =TabAir[[#This Row],[Tepelná kapacita c]]*TabAir[[#This Row],[Dynamická viskozita]]/TabAir[[#This Row],[Tepelná vodivost λ]] -> 0.7249334862
A9: 60 | B9: 1.046 | C9: 1.06692 | D9: =TabAir[[#This Row],[Dynamická viskozita]]/TabAir[[#This Row],[Hustota P1]] -> 1.86614929e-05 | E9: 1.991032e-05 | F9: 0.028 | G9: 1017 | H9: =TabAir[[#This Row],[Tepelná kapacita c]]*TabAir[[#This Row],[Dynamická viskozita]]/TabAir[[#This Row],[Tepelná vodivost λ]] -> 0.7231712657
A10: 70 | B10: 1.01 | C10: 1.0302 | D10: =TabAir[[#This Row],[Dynamická viskozita]]/TabAir[[#This Row],[Hustota P1]] -> 1.975428072e-05 | E10: 2.035086e-05 | F10: 0.02865 | G10: 1018.5 | H10: =TabAir[[#This Row],[Tepelná kapacita c]]*TabAir[[#This Row],[Dynamická viskozita]]/TabAir[[#This Row],[Tepelná vodivost λ]] -> 0.7234677455
A11: 80 | B11: 0.97 | C11: 0.9894 | D11: =TabAir[[#This Row],[Dynamická viskozita]]/TabAir[[#This Row],[Hustota P1]] -> 2.100691328e-05 | E11: 2.078424e-05 | F11: 0.0293 | G11: 1020 | H11: =TabAir[[#This Row],[Tepelná kapacita c]]*TabAir[[#This Row],[Dynamická viskozita]]/TabAir[[#This Row],[Tepelná vodivost λ]] -> 0.7235469215
A12: 90 | B12: 0.937 | C12: 0.95574 | D12: =TabAir[[#This Row],[Dynamická viskozita]]/TabAir[[#This Row],[Hustota P1]] -> 2.219283487e-05 | E12: 2.121058e-05 | F12: 0.03 | G12: 1021 | H12: =TabAir[[#This Row],[Tepelná kapacita c]]*TabAir[[#This Row],[Dynamická viskozita]]/TabAir[[#This Row],[Tepelná vodivost λ]] -> 0.7218667393
A17: Výpočet pro | B17: A
A18: teplota media | B18: =Tep1_in -> 20
A19: kinematická viskozita | B19: =INDEX(TabAir[],MATCH(B18,TabAir[Teplota],0),4) -> 1.491562686e-05
A20: dynamická viskozita | B20: =INDEX(TabAir[],MATCH(B18,TabAir[Teplota],0),5) -> 1.807416e-05
A21: hustota při P1 | B21: =INDEX(TabAir[],MATCH(B18,TabAir[Teplota],0),3) -> 1.21176
A22: Tepelná vodivost λ | B22: =IFERROR(INDEX(TabAir[],MATCH(ROUND(B18,-1),TabAir[Teplota],),6),F12) -> 0.0252
A23: Tepelná kapacita cp | B23: =IFERROR(INDEX(TabAir[],MATCH(ROUND(B18,-1),TabAir[Teplota],),7),G12) -> 1010
A50: vzduch

Sheet Methan (hidden)
A1: [°C] | B1: [kg•m-3] | C1: [kg•m-3] | D1: [m2•s-1] | E1: [Pa•s] | F1: [W•m-1•K-1] | G1: [J•kg-1•K-1] | H1: [-]
A2: Teplota | B2: Hustota P0 | C2: Hustota P1 | D2: Kinematická viskosita | E2: Dynamická viskozita | F2: Tepelná vodivost λ | G2: Tepelná kapacita c | H2: Pr | J2: Tlak P1 [Pa] | K2: =Tlak*1000+100000 -> 102000 | L2: Pa
A3: 0 | B3: 0.73 | C3: =$B3*($K$2/100000) -> 0.7446 | D3: =TabMathan[[#This Row],[Dynamická viskozita]]/TabMathan[[#This Row],[Hustota P1]] -> 1.415525114e-05 | E3: =10.54/1000000 -> 1.054e-05 | J3: Spalné teplo | K3: 39.9 | L3: MJ/m3
A4: 10 | B4: 0.704 | C4: 0.71808 | D4: =TabMathan[[#This Row],[Dynamická viskozita]]/TabMathan[[#This Row],[Hustota P1]] -> 1.508188503e-05 | E4: =10.83/1000000 -> 1.083e-05 | J4: Výhřevnost | K4: 35.9 | L4: MJ/m3
A5: 20 | B5: 0.68 | C5: 0.6936 | D5: =TabMathan[[#This Row],[Dynamická viskozita]]/TabMathan[[#This Row],[Hustota P1]] -> 1.603229527e-05 | E5: =11.12/1000000 -> 1.112e-05
A6: 30 | B6: 0.658 | C6: 0.67116 | D6: =TabMathan[[#This Row],[Dynamická viskozita]]/TabMathan[[#This Row],[Hustota P1]] -> 1.700041719e-05 | E6: =11.41/1000000 -> 1.141e-05
A7: 40 | B7: 0.637 | C7: 0.64974 | D7: =TabMathan[[#This Row],[Dynamická viskozita]]/TabMathan[[#This Row],[Hustota P1]] -> 1.800720288e-05 | E7: =11.7/1000000 -> 1.17e-05
A8: 50 | B8: 0.617 | C8: 0.62934 | D8: =TabMathan[[#This Row],[Dynamická viskozita]]/TabMathan[[#This Row],[Hustota P1]] -> 1.90358153e-05 | E8: =11.98/1000000 -> 1.198e-05
A9: 60 | B9: 0.598 | C9: 0.60996 | D9: =TabMathan[[#This Row],[Dynamická viskozita]]/TabMathan[[#This Row],[Hustota P1]] -> 2.009967867e-05 | E9: =12.26/1000000 -> 1.226e-05
A10: 70 | B10: 0.581 | C10: 0.59262 | D10: =TabMathan[[#This Row],[Dynamická viskozita]]/TabMathan[[#This Row],[Hustota P1]] -> 2.116027134e-05 | E10: =12.54/1000000 -> 1.254e-05
A11: 80 | B11: 0.565 | C11: 0.5763 | D11: =TabMathan[[#This Row],[Dynamická viskozita]]/TabMathan[[#This Row],[Hustota P1]] -> 2.222800625e-05 | E11: =12.81/1000000 -> 1.281e-05
A12: 90 | B12: 0.549 | C12: 0.55998 | D12: =TabMathan[[#This Row],[Dynamická viskozita]]/TabMathan[[#This Row],[Hustota P1]] -> 2.337583485e-05 | E12: =13.09/1000000 -> 1.309e-05
A17: Výpočet pro | B17: A
A18: teplota media | B18: =Tep1_in -> 20
A19: kinematická viskozita | B19: =INDEX(TabMathan[],MATCH(B18,TabMathan[Teplota],0),4) -> 1.603229527e-05
A20: dynamická viskozita | B20: =INDEX(TabMathan[],MATCH(B18,TabMathan[Teplota],0),5) -> 1.112e-05
A21: hustota při P1 | B21: =INDEX(TabMathan[],MATCH(B18,TabMathan[Teplota],0),3) -> 0.6936
A22: Tepelná vodivost λ | B22: =IFERROR(INDEX(TabMathan[],MATCH(ROUND(B18,-1),TabMathan[Teplota],),6),F12) -> 0
A23: Tepelná kapacita cp | B23: =IFERROR(INDEX(TabMathan[],MATCH(ROUND(B18,-1),TabMathan[Teplota],),7),G12) -> 0
A50: metan

Sheet Propan (hidden)
A1: [°C] | B1: [kg•m-3] | C1: [kg•m-3] | D1: [m2•s-1] | E1: [Pa•s] | F1: [W•m-1•K-1] | G1: [J•kg-1•K-1] | H1: [-]
A2: Teplota | B2: Hustota P0 | C2: Hustota P1 | D2: Kinematická viskosita | E2: Dynamická viskozita | F2: Tepelná vodivost λ | G2: Tepelná kapacita c | H2: Pr | J2: Tlak P1 [Pa] | K2: =Tlak*1000+100000 -> 102000 | L2: Pa
A3: 0 | B3: 1.9832 | C3: =$B3*($K$2/100000) -> 2.022864 | D3: =TabPropan[[#This Row],[Dynamická viskozita]]/TabPropan[[#This Row],[Hustota P1]] -> 3.692536918e-06 | E3: =7.4695/1000000 -> 7.4695e-06 | H3: =IFERROR(TabPropan[[#This Row],[Tepelná kapacita c]]*TabPropan[[#This Row],[Dynamická viskozita]]/TabPropan[[#This Row],[Tepelná vodivost λ]],"") ->  | J3: Spalné teplo | K3: 101 | L3: MJ/m3
A4: 10 | B4: 1.9087 | C4: 1.946874 | D4: =TabPropan[[#This Row],[Dynamická viskozita]]/TabPropan[[#This Row],[Hustota P1]] -> 3.976220341e-06 | E4: =7.7412/1000000 -> 7.7412e-06 | H4: =IFERROR(TabPropan[[#This Row],[Tepelná kapacita c]]*TabPropan[[#This Row],[Dynamická viskozita]]/TabPropan[[#This Row],[Tepelná vodivost λ]],"") ->  | J4: Výhřevnost | K4: 93.2 | L4: MJ/m3
A5: 20 | B5: 1.84 | C5: 1.8768 | D5: =TabPropan[[#This Row],[Dynamická viskozita]]/TabPropan[[#This Row],[Hustota P1]] -> 4.268755328e-06 | E5: =8.0116/1000000 -> 8.0116e-06 | H5: =IFERROR(TabPropan[[#This Row],[Tepelná kapacita c]]*TabPropan[[#This Row],[Dynamická viskozita]]/TabPropan[[#This Row],[Tepelná vodivost λ]],"") -> 
A6: 30 | B6: 1.7763 | C6: 1.811826 | D6: =TabPropan[[#This Row],[Dynamická viskozita]]/TabPropan[[#This Row],[Hustota P1]] -> 4.570416806e-06 | E6: =8.2808/1000000 -> 8.2808e-06 | H6: =IFERROR(TabPropan[[#This Row],[Tepelná kapacita c]]*TabPropan[[#This Row],[Dynamická viskozita]]/TabPropan[[#This Row],[Tepelná vodivost λ]],"") -> 
A7: 40 | B7: 1.717 | C7: 1.75134 | D7: =TabPropan[[#This Row],[Dynamická viskozita]]/TabPropan[[#This Row],[Hustota P1]] -> 4.881290897e-06 | E7: =8.5488/1000000 -> 8.5488e-06 | H7: =IFERROR(TabPropan[[#This Row],[Tepelná kapacita c]]*TabPropan[[#This Row],[Dynamická viskozita]]/TabPropan[[#This Row],[Tepelná vodivost λ]],"") -> 
A8: 50 | B8: 1.6617 | C8: 1.694934 | D8: =TabPropan[[#This Row],[Dynamická viskozita]]/TabPropan[[#This Row],[Hustota P1]] -> 5.201028477e-06 | E8: =8.8154/1000000 -> 8.8154e-06 | H8: =IFERROR(TabPropan[[#This Row],[Tepelná kapacita c]]*TabPropan[[#This Row],[Dynamická viskozita]]/TabPropan[[#This Row],[Tepelná vodivost λ]],"") -> 
A9: 60 | B9: 1.61 | C9: 1.6422 | D9: =TabPropan[[#This Row],[Dynamická viskozita]]/TabPropan[[#This Row],[Hustota P1]] -> 5.52965534e-06 | E9: =9.0808/1000000 -> 9.0808e-06 | H9: =IFERROR(TabPropan[[#This Row],[Tepelná kapacita c]]*TabPropan[[#This Row],[Dynamická viskozita]]/TabPropan[[#This Row],[Tepelná vodivost λ]],"") -> 
A10: 70 | B10: 1.5615 | C10: 1.59273 | D10: =TabPropan[[#This Row],[Dynamická viskozita]]/TabPropan[[#This Row],[Hustota P1]] -> 5.867158903e-06 | E10: =9.3448/1000000 -> 9.3448e-06 | H10: =IFERROR(TabPropan[[#This Row],[Tepelná kapacita c]]*TabPropan[[#This Row],[Dynamická viskozita]]/TabPropan[[#This Row],[Tepelná vodivost λ]],"") -> 
A11: 80 | B11: 1.5159 | C11: 1.546218 | D11: =TabPropan[[#This Row],[Dynamická viskozita]]/TabPropan[[#This Row],[Hustota P1]] -> 6.213548154e-06 | E11: =9.6075/1000000 -> 9.6075e-06 | H11: =IFERROR(TabPropan[[#This Row],[Tepelná kapacita c]]*TabPropan[[#This Row],[Dynamická viskozita]]/TabPropan[[#This Row],[Tepelná vodivost λ]],"") -> 
A12: 90 | B12: 1.473 | C12: 1.50246 | D12: =TabPropan[[#This Row],[Dynamická viskozita]]/TabPropan[[#This Row],[Hustota P1]] -> 6.568361221e-06 | E12: =9.8687/1000000 -> 9.8687e-06 | H12: =IFERROR(TabPropan[[#This Row],[Tepelná kapacita c]]*TabPropan[[#This Row],[Dynamická viskozita]]/TabPropan[[#This Row],[Tepelná vodivost λ]],"") -> 
A17: Výpočet pro | B17: A
A18: teplota media | B18: =Tep1_in -> 20
A19: kinematická viskozita | B19: =INDEX(TabPropan[],MATCH(B18,TabPropan[Teplota],0),4) -> 4.268755328e-06
A20: dynamická viskozita | B20: =INDEX(TabPropan[],MATCH(B18,TabPropan[Teplota],0),5) -> 8.0116e-06
A21: hustota při P1 | B21: =INDEX(TabPropan[],MATCH(B18,TabPropan[Teplota],0),3) -> 1.8768
A22: Tepelná vodivost λ | B22: =IFERROR(INDEX(TabPropan[],MATCH(ROUND(B18,-1),TabPropan[Teplota],),6),F12) -> 0
A23: Tepelná kapacita cp | B23: =IFERROR(INDEX(TabPropan[],MATCH(ROUND(B18,-1),TabPropan[Teplota],),7),G12) -> 0
A50: propan

Sheet Butan (hidden)
A1: [°C] | B1: [kg•m-3] | C1: [kg•m-3] | D1: [m2•s-1] | E1: [Pa•s] | F1: [W•m-1•K-1] | G1: [J•kg-1•K-1] | H1: [-]
A2: Teplota | B2: Hustota P0 | C2: Hustota P1 | D2: Kinematická viskosita | E2: Dynamická viskozita | F2: Tepelná vodivost λ | G2: Tepelná kapacita c | H2: Pr | J2: Tlak P1 [Pa] | K2: =Tlak*1000+100000 -> 102000 | L2: Pa
A3: 0 | B3: 2.6668 | C3: =$B3*($K$2/100000) -> 2.720136 | D3: =TabButan[[#This Row],[Dynamická viskozita]]/TabButan[[#This Row],[Hustota P1]] -> 2.488662332e-06 | E3: =6.7695/1000000 -> 6.7695e-06 | H3: =IFERROR(TabButan[[#This Row],[Tepelná kapacita c]]*TabButan[[#This Row],[Dynamická viskozita]]/TabButan[[#This Row],[Tepelná vodivost λ]],"") ->  | J3: Spalné teplo | K3: 134 | L3: MJ/m3
A4: 10 | B4: 2.5597 | C4: 2.610894 | D4: =TabButan[[#This Row],[Dynamická viskozita]]/TabButan[[#This Row],[Hustota P1]] -> 2.690879063e-06 | E4: =7.0256/1000000 -> 7.0256e-06 | H4: =IFERROR(TabButan[[#This Row],[Tepelná kapacita c]]*TabButan[[#This Row],[Dynamická viskozita]]/TabButan[[#This Row],[Tepelná vodivost λ]],"") ->  | J4: Výhřevnost | K4: 123 | L4: MJ/m3
A5: 20 | B5: 2.462 | C5: 2.51124 | D5: =TabButan[[#This Row],[Dynamická viskozita]]/TabButan[[#This Row],[Hustota P1]] -> 2.898727322e-06 | E5: =7.2794/1000000 -> 7.2794e-06 | H5: =IFERROR(TabButan[[#This Row],[Tepelná kapacita c]]*TabButan[[#This Row],[Dynamická viskozita]]/TabButan[[#This Row],[Tepelná vodivost λ]],"") -> 
A6: 30 | B6: 2.3723 | C6: 2.419746 | D6: =TabButan[[#This Row],[Dynamická viskozita]]/TabButan[[#This Row],[Hustota P1]] -> 3.112434115e-06 | E6: =7.5313/1000000 -> 7.5313e-06 | H6: =IFERROR(TabButan[[#This Row],[Tepelná kapacita c]]*TabButan[[#This Row],[Dynamická viskozita]]/TabButan[[#This Row],[Tepelná vodivost λ]],"") -> 
A7: 40 | B7: 2.2896 | C7: 2.335392 | D7: =TabButan[[#This Row],[Dynamická viskozita]]/TabButan[[#This Row],[Hustota P1]] -> 3.331988805e-06 | E7: =7.7815/1000000 -> 7.7815e-06 | H7: =IFERROR(TabButan[[#This Row],[Tepelná kapacita c]]*TabButan[[#This Row],[Dynamická viskozita]]/TabButan[[#This Row],[Tepelná vodivost λ]],"") -> 
A8: 50 | B8: 2.213 | C8: 2.25726 | D8: =TabButan[[#This Row],[Dynamická viskozita]]/TabButan[[#This Row],[Hustota P1]] -> 3.557454613e-06 | E8: =8.0301/1000000 -> 8.0301e-06 | H8: =IFERROR(TabButan[[#This Row],[Tepelná kapacita c]]*TabButan[[#This Row],[Dynamická viskozita]]/TabButan[[#This Row],[Tepelná vodivost λ]],"") -> 
A9: 60 | B9: 2.1417 | C9: 2.184534 | D9: =TabButan[[#This Row],[Dynamická viskozita]]/TabButan[[#This Row],[Hustota P1]] -> 3.789000309e-06 | E9: =8.2772/1000000 -> 8.2772e-06 | H9: =IFERROR(TabButan[[#This Row],[Tepelná kapacita c]]*TabButan[[#This Row],[Dynamická viskozita]]/TabButan[[#This Row],[Tepelná vodivost λ]],"") -> 
A10: 70 | B10: 2.0752 | C10: 2.116704 | D10: =TabButan[[#This Row],[Dynamická viskozita]]/TabButan[[#This Row],[Hustota P1]] -> 4.026543154e-06 | E10: =8.523/1000000 -> 8.523e-06 | H10: =IFERROR(TabButan[[#This Row],[Tepelná kapacita c]]*TabButan[[#This Row],[Dynamická viskozita]]/TabButan[[#This Row],[Tepelná vodivost λ]],"") -> 
A11: 80 | B11: 2.013 | C11: 2.05326 | D11: =TabButan[[#This Row],[Dynamická viskozita]]/TabButan[[#This Row],[Hustota P1]] -> 4.270087568e-06 | E11: =8.7676/1000000 -> 8.7676e-06 | H11: =IFERROR(TabButan[[#This Row],[Tepelná kapacita c]]*TabButan[[#This Row],[Dynamická viskozita]]/TabButan[[#This Row],[Tepelná vodivost λ]],"") -> 
A12: 90 | B12: 1.9546 | C12: 1.993692 | D12: =TabButan[[#This Row],[Dynamická viskozita]]/TabButan[[#This Row],[Hustota P1]] -> 4.519755308e-06 | E12: =9.011/1000000 -> 9.011e-06 | H12: =IFERROR(TabButan[[#This Row],[Tepelná kapacita c]]*TabButan[[#This Row],[Dynamická viskozita]]/TabButan[[#This Row],[Tepelná vodivost λ]],"") -> 
A17: Výpočet pro | B17: A
A18: teplota media | B18: =Tep1_in -> 20
A19: kinematická viskozita | B19: =INDEX(TabButan[],MATCH(B18,TabButan[Teplota],0),4) -> 2.898727322e-06
A20: dynamická viskozita | B20: =INDEX(TabButan[],MATCH(B18,TabButan[Teplota],0),5) -> 7.2794e-06
A21: hustota při P1 | B21: =INDEX(TabButan[],MATCH(B18,TabButan[Teplota],0),3) -> 2.51124
A22: Tepelná vodivost λ | B22: =IFERROR(INDEX(TabButan[],MATCH(ROUND(B18,-1),TabButan[Teplota],),6),F12) -> 0
A23: Tepelná kapacita cp | B23: =IFERROR(INDEX(TabButan[],MATCH(ROUND(B18,-1),TabButan[Teplota],),7),G12) -> 0
A50: butan
